Cogmind - Beta 16 @@@ ROGUE MODE // 2026.01.04 @ 10:07:35 // Winter2019/RPGLIKE Player: Gallgagger Result: Self-destructed Performance ------------- Evolutions (7) 3500 Regions Visited (29) 5800 Robots Destroyed (1136) 5680 Value Destroyed (65739) 65739 Prototype IDs (154) 3080 Alien Tech Used (2) 400 Bonus (75753) 75753 TOTAL SCORE: 159952 Bonus ------- Triggered High Security 3000 High Alert Combat Kills 32015 Follower Combat Kills 6136 Destroyed Unchained 3000 Registered with UFD 300 Met Optimus in HQ 500 Met Imprinter 300 Destroyed Z-Imprinter 1000 Met Warlord at Base 500 MAIN.C Attacked Warlord 500 Warlord Defense Kills 29820 Met Optimus at Protoforge 1000 Friendly Fire -2318 Cogmind --------- Core Integrity 362/650 Matter 300/300 Energy 697/700 System Corruption 6% Temperature Cool (6) Movement Hovering (21) Location -3/Protoforge Parts ------- > --- POWER (3) -------- Zionite Light DM Reactor Vortex Chain Reactor > --- PROPULSION (5) --- Experimental Antigrav System Gravjet Array (fused) Concept Gyrokinetic System Concept Gyrokinetic System > --- UTILITY (11) ----- 0bPrime Scrap Suit Zionite Metafield Generator Experimental Target Analyzer Experimental Core Analyzer Concept Core Analysis Suite Experimental Armor Integrity Analyzer Experimental Kinecellerator Experimental Weapon Cycler Experimental Reaction Control System Experimental System Purifier > --- WEAPON (4) ------- Overtuned Railgun Overtuned Railgun LU-1G1's Laser Shovel > --- INVENTORY (6) ---- Long-range Terrain Scanner Experimental Phase Shifter Experimental System Purifier Crosscalibrator Subatomic Replicator CPS Tube (1) Peak State ------------ > --- POWER ------------ Zionite Light DM Reactor Vortex Chain Reactor > --- PROPULSION ------- Experimental Antigrav System Gravjet Array Concept Gyrokinetic System Concept Gyrokinetic System > --- UTILITY ---------- 0bPrime Scrap Suit Zionite Metafield Generator Experimental Target Analyzer Experimental Core Analyzer Concept Core Analysis Suite Experimental Armor Integrity Analyzer Experimental Kinecellerator Experimental Weapon Cycler Experimental Reaction Control System Experimental System Purifier > --- WEAPON ----------- Overtuned Railgun Overtuned Railgun Compact Linear Accelerator LU-1G1's Laser Shovel > --- INVENTORY -------- Long-range Terrain Scanner Experimental Phase Shifter Experimental System Purifier Crosscalibrator Subatomic Replicator CPS Tube [Rating: 228] Favorites ----------- Power Zionite Light DM Reactor Engine Makeshift Power Source Power Core Light Nuclear Core Reactor Zionite Light DM Reactor Propulsion Zionite Glidesys II Leg Aluminum Leg Hover Unit Zionite Glidesys II Flight Unit Biomechanical Wings Utility Seismic Detector Device Seismic Detector Storage Medium Matter Pod Processor Makeshift Salvage Targeting Computer Hackware Ghost Barrier Protection Medium Reactive Plating Weapon Overtuned Coil Gun Energy Gun Overtuned Beamcaster Energy Cannon Overtuned Phase Cannon Ballistic Gun Overtuned Coil Gun Ballistic Cannon Battle Cannon Launcher Vortex Catalyst Activator Special Weapon LU-1G1's Laser Shovel Special Melee Weapon Advanced Datajack Build | -11 -10 -10 -9 -9 -6 -6 -6 -6 -6 -6 -6 -5 -5 -5 -5 -5 -5 -5 -4 -4 -4 -4 -4 -4 -4 -3 -3 -3 -3 ------- Run | Yrd Mat Sub Rec Scr Fac Was Fac Low Low Zio Dee Pro Fac Was Fac Upp Upp Zhi Pro Fac Was Fac Upp Upp War Pro Res Qua Frg Slots Evolved 19 | 3 2 1 1 1 4 . 4 . . . . . . . . . . . . 1 . . . . 1 1 . . . Power 2 | . . . . . 1 . . . . . . . . . . . . . . . . . . . . 1 . . . Propulsion 4 | 1 . . 1 . 1 . 1 . . . . . . . . . . . . . . . . . . . . . . Utility 10 | 1 2 . . 1 2 . 2 . . . . . . . . . . . . 1 . . . . 1 . . . . Weapon 3 | 1 . 1 . . . . 1 . . . . . . . . . . . . . . . . . . . . . . Parts Attached 173 | 7 9 9 6 9 18 2 13 3 1 . 20 2 2 1 7 . 1 4 3 9 . 2 . . 15 . 5 2 23 Power 13 | 1 1 1 . . . . 2 . . . 1 . . . 2 . . . 1 1 . 1 . . 2 . . . . Engine 4 | 1 . 1 . . . . 2 . . . . . . . . . . . . . . . . . . . . . . Core 2 | . 1 . . . . . . . . . . . . . 1 . . . . . . . . . . . . . . Reactor 7 | . . . . . . . . . . . 1 . . . 1 . . . 1 1 . 1 . . 2 . . . . Propulsion 40 | 2 3 1 3 . 7 . 5 . . . 8 . . . . . . 3 . 3 . . . . 1 . . . 4 Treads . | . . . . . . . . . . . . . . . . . . . . . . . . . . . . . . Leg 2 | 2 . . . . . . . . . . . . . . . . . . . . . . . . . . . . . Wheel . | . . . . . . . . . . . . . . . . . . . . . . . . . . . . . . Hover 19 | . . . . . . . . . . . 8 . . . . . . 3 . 3 . . . . 1 . . . 4 Flight 19 | . 3 1 3 . 7 . 5 . . . . . . . . . . . . . . . . . . . . . . Utility 79 | 2 4 3 1 4 10 2 6 . 1 . 8 2 1 1 3 . . 1 1 2 . . . . 10 . 2 1 14 Device 50 | 1 . . 1 2 7 2 4 . 1 . 4 2 1 1 3 . . . 1 1 . . . . 9 . 1 . 9 Storage 5 | 1 3 . . . 1 . . . . . . . . . . . . . . . . . . . . . . . . Processor 14 | . 1 1 . 1 . . 2 . . . 1 . . . . . . . . 1 . . . . 1 . . 1 5 Hackware 1 | . . . . . . . . . . . . . . . . . . . . . . . . . . . 1 . . Protection 9 | . . 2 . 1 2 . . . . . 3 . . . . . . 1 . . . . . . . . . . . Artifact . | . . . . . . . . . . . . . . . . . . . . . . . . . . . . . . Weapon 41 | 2 1 4 2 5 1 . . 3 . . 3 . 1 . 2 . 1 . 1 3 . 1 . . 2 . 3 1 5 Energy Gun 8 | 1 1 . 1 2 . . . . . . 2 . 1 . . . . . . . . . . . . . . . . Energy Cannon 3 | . . . . . . . . 2 . . . . . . . . . . . . . . . . . . . 1 . Ballistic Gun 15 | 1 . 1 1 2 . . . . . . 1 . . . 2 . . . . 2 . . . . . . 3 . 2 Ballistic Cannon 7 | . . 3 . . . . . 1 . . . . . . . . . . . . . . . . 1 . . . 2 Launcher 1 | . . . . . . . . . . . . . . . . . . . . . . . . . 1 . . . . Special Weapon 6 | . . . . 1 1 . . . . . . . . . . . 1 . 1 . . 1 . . . . . . 1 Impact Weapon . | . . . . . . . . . . . . . . . . . . . . . . . . . . . . . . Slashing Weapon . | . . . . . . . . . . . . . . . . . . . . . . . . . . . . . . Piercing Weapon . | . . . . . . . . . . . . . . . . . . . . . . . . . . . . . . Special Melee Weapon 1 | . . . . . . . . . . . . . . . . . . . . 1 . . . . . . . . . Unidentified Prototypes 53 | . . . . 1 2 2 3 . . . 11 . 1 . 2 . . 3 . 5 . . . . 10 . 3 1 9 Corrupted Parts 1 | . . . . . . . . . . . . . . . . . . . . . . . . . . . 1 . . System Corruption 3 | . . . . . . . . . . . . . . . . . . . . . . . . . . . 3 . . Parts Lost 6 | . . 1 . . . . . . . . . 2 . . 1 . . . . . . 1 . . . . . . 1 Power . | . . . . . . . . . . . . . . . . . . . . . . . . . . . . . . Propulsion . | . . . . . . . . . . . . . . . . . . . . . . . . . . . . . . Utility 6 | . . 1 . . . . . . . . . 2 . . 1 . . . . . . 1 . . . . . . 1 Weapon . | . . . . . . . . . . . . . . . . . . . . . . . . . . . . . . Highest Loss Streak 2 | . . 1 . . . . . . . . . 2 . . 1 . . . . . . 1 . . . . . . 1 To Critical Strikes . | . . . . . . . . . . . . . . . . . . . . . . . . . . . . . . Average Backups 3 | . . 1 1 2 3 4 3 3 3 4 4 4 4 4 3 3 3 3 3 2 4 3 4 4 2 4 4 4 4 Power . | . . . . . . . . . . . . . . . . . . . . . . . . . . . . . . Propulsion . | . . . . . . . . . . . . . . . . . . . . . . . . . . . . . . Utility 1 | . . . 1 1 2 2 1 . . 1 2 3 2 2 2 3 3 3 3 2 3 2 2 2 1 3 3 2 2 Weapon . | . . . . 1 . . . 2 2 2 1 . 1 2 . . . . . . . . . . . . . . . Tool/Special . | . . . . . . . . . . . . . . . . . . . . . . . . . . . . . . Unused Backups 8 | . 1 . . 1 1 . . . . . 1 . . . . . . . . . . . . . . . 1 . 3 Power . | . . . . . . . . . . . . . . . . . . . . . . . . . . . . . . Propulsion 1 | . 1 . . . . . . . . . . . . . . . . . . . . . . . . . . . . Utility 4 | . . . . . 1 . . . . . . . . . . . . . . . . . . . . . 1 . 2 Weapon 2 | . . . . 1 . . . . . . 1 . . . . . . . . . . . . . . . . . . Tool/Special 1 | . . . . . . . . . . . . . . . . . . . . . . . . . . . . . 1 Average Slot Usage (%) 92 | . 99 89 94 99 89 90 94 95 95 95 94 94 95 95 95 95 95 94 95 95 95 94 95 95 92 90 91 91 86 Engine 3 | . 8 4 9 8 7 9 10 10 10 10 5 5 5 5 . . . . . . . . . . . . . . . Reactor 4 | . . . . . . . . . . . 4 5 5 5 7 10 10 10 10 9 9 9 9 9 8 6 8 8 7 Hover 13 | . . . . . . . . . . . 20 25 25 25 25 25 25 25 25 23 23 23 23 23 22 21 21 21 18 Flight 9 | . 17 20 25 26 25 25 25 25 25 25 4 . . . . . . . . . . . . . . . . . . Device 29 | . 12 10 13 24 32 31 29 30 30 30 28 28 35 35 35 35 35 34 35 37 38 37 38 38 36 39 34 31 27 Storage 1 | . 17 5 . . . . . . . . . . . . . . . . . . . . . . . . . . . Processor 5 | . 5 10 9 3 . . 5 5 5 5 5 5 5 5 5 5 5 5 5 4 4 4 4 4 4 4 4 6 14 Protection 2 | . . 4 9 8 1 6 4 5 5 5 6 6 . . . . . . . . . . . . . . . . . Energy Gun 3 | . 12 2 3 8 4 . . . . . . . . . 4 5 5 5 5 4 4 4 4 4 4 4 3 . . Ballistic Gun 11 | . 12 7 14 17 12 17 15 14 15 15 14 15 15 15 10 10 10 10 10 9 9 9 9 9 9 8 8 13 12 Ballistic Cannon 1 | . . 18 9 . . . . 1 . . . . . . . . . . . . . . . . . . . . . Special Weapon 2 | . . . . . 5 . 2 . . . . . 4 5 5 5 5 5 5 3 4 4 4 4 3 4 4 4 4 Peak Build Rating 228 | 7 11 28 28 43 68 75 96 96 96 95 117 119 120 119 128 127 126 129 128 146 145 147 137 139 196 165 180 191 228 Average Rating 102 | 6 8 20 26 34 51 69 87 94 95 95 107 114 119 118 125 126 126 127 127 134 145 138 137 137 146 162 167 177 195 On Entrance 103 | . 7 11 24 26 39 66 71 96 95 95 95 112 119 119 118 127 126 126 128 128 145 145 137 137 137 157 165 180 177 Avg Prop Armor Cover (%) 2 | . . . . . . . . . . . 1 . . . . . . . . . . . . . 3 . . . . Naked Turns . | . . . . . . . . . . . . . . . . . . . . . . . . . . . . . . Heaviest Build 90 | 9 13 22 23 26 43 45 55 56 54 54 65 55 55 50 63 63 63 62 63 61 57 63 63 63 74 84 90 90 89 Greatest Support 102 | 20 25 22 26 26 46 46 56 56 56 56 89 89 89 89 89 89 89 89 83 87 85 85 85 85 89 89 94 94 102 Greatest Overweight (x) 1 | . 1 . . . . . . . . . . . . . . . . . . . . . . . . . 1 . . Average Overweight (x) . | . . . . . . . . . . . . . . . . . . . . . . . . . . . . . . Largest Inventory Capacity 6 | 1 1 1 2 2 4 4 5 5 5 5 5 5 5 5 5 5 5 5 5 6 6 6 6 6 6 6 6 6 6 Average Capacity 4 | . 1 1 1 2 3 4 4 5 5 5 5 5 5 5 5 5 5 5 5 5 6 6 6 6 6 6 6 6 6 Most Carried 6 | . 1 1 2 2 4 4 5 5 4 5 5 5 5 5 5 5 5 5 5 6 6 6 6 6 6 6 6 6 6 Average Carried 4 | . . . 1 1 3 4 3 3 3 4 4 4 4 5 4 5 5 5 5 4 6 5 6 6 5 5 5 5 4 Final Capacity 6 | 1 1 1 2 2 4 4 5 5 5 5 5 5 5 5 5 5 5 5 5 6 6 6 6 6 6 6 6 6 6 Final Carried 6 | . 1 1 2 2 4 4 5 3 4 5 5 4 5 5 5 5 5 5 5 6 6 6 6 6 6 5 6 5 6 Scrap Suit Usage (%) 80 | . . . . 6 100 100 99 100 100 100 100 100 100 100 100 100 100 100 100 100 100 100 100 100 99 100 100 100 100 Parts Cannibalized 7 | . . . . 1 1 . . . 2 . . . . 2 . . . . . . . . . . 1 . . . . Class Distribution -------------------- 43% | Scavenger-Sprinter 20% | Scavenger-Scout 10% | Derelict-Gunner 6% | Scrapper 4% | Scavenger-Scrapper 4% | Scavenger-Gunner 3% | Mutant 3% | Sprinter Dominant Class ---------------- Mutant | -10/Materials Derelict-Gunner | -10/Subcaves Derelict-Gunner | -9/Recycling Derelict-Gunner | -9/Scraptown Scrapper | -6/Factory Sprinter | -6/Waste Scavenger-Sprinter | -6/Factory Scavenger-Sprinter | -6/Lower Caves Scavenger-Sprinter | -6/Lower Caves Scavenger-Sprinter | -6/Zion Scavenger-Sprinter | -6/Deep Caves Scavenger-Sprinter | -5/Proximity Caves Scavenger-Sprinter | -5/Factory Scavenger-Sprinter | -5/Waste Scavenger-Sprinter | -5/Factory Scavenger-Scout | -5/Upper Caves Scavenger-Scout | -5/Upper Caves Scavenger-Scout | -5/Zhirov Scavenger-Scout | -4/Proximity Caves Scavenger-Scout | -4/Factory Scavenger-Scout | -4/Waste Scavenger-Scout | -4/Factory Scavenger-Scout | -4/Upper Caves Scavenger-Scout | -4/Upper Caves Scavenger-Sprinter | -4/Warlord Scavenger-Sprinter | -3/Proximity Caves Scavenger-Sprinter | -3/Research Scavenger-Scout | -3/Quarantine Scavenger-Sprinter | -3/Protoforge Resources | -11 -10 -10 -9 -9 -6 -6 -6 -6 -6 -6 -6 -5 -5 -5 -5 -5 -5 -5 -4 -4 -4 -4 -4 -4 -4 -3 -3 -3 -3 ----------- Run | Yrd Mat Sub Rec Scr Fac Was Fac Low Low Zio Dee Pro Fac Was Fac Upp Upp Zhi Pro Fac Was Fac Upp Upp War Pro Res Qua Frg Matter Collected 27249 | 335 417 1156 460 123 2100 296 2471 336 208 . 822 664 904 . 2165 95 307 107 452 1140 464 2192 334 340 3995 548 1050 155 3613 Remotely . | . . . . . . . . . . . . . . . . . . . . . . . . . . . . . . Salvage Created 62219 | 50 629 249 219 . 2676 . 4182 341 302 . 949 975 1315 . 6051 322 1230 197 922 3738 1446 9559 1153 1079 13098 1458 2650 191 7238 Parts 3695 | 5 36 35 11 1 139 1 203 17 19 . 53 93 109 . 410 25 62 5 70 206 49 465 75 55 802 110 186 12 441 Haulers Intercepted 20 | . 2 . . . 7 . 4 . . . . . . . 1 . . . 1 1 . 4 . . . . . . . Recyclers Shooed 12 | . 1 . 1 . 3 . 1 . . . . . . . 1 . . . . 1 . 2 . . . . 2 . . Parts Field Recycled . | . . . . . . . . . . . . . . . . . . . . . . . . . . . . . . Retrieved Matter . | . . . . . . . . . . . . . . . . . . . . . . . . . . . . . . Parts Self-Destructed 534 | . . 20 . . . . . 17 14 . . 92 . . . 25 57 3 71 . . . 75 50 . 110 . . . Prevented 1 | . . . . . . . . . . . . . . . . . . . . . . . . 1 . . . . . Parts Restored . | . . . . . . . . . . . . . . . . . . . . . . . . . . . . . . Kills | -11 -10 -10 -9 -9 -6 -6 -6 -6 -6 -6 -6 -5 -5 -5 -5 -5 -5 -5 -4 -4 -4 -4 -4 -4 -4 -3 -3 -3 -3 ------- Run | Yrd Mat Sub Rec Scr Fac Was Fac Low Low Zio Dee Pro Fac Was Fac Upp Upp Zhi Pro Fac Was Fac Upp Upp War Pro Res Qua Frg Combat Hostiles Destroyed 1038 | 1 14 17 4 2 55 1 63 7 4 . 9 24 25 . 114 4 24 . 20 52 5 142 23 18 235 26 36 4 109 Guns 974 | 1 14 9 . 2 54 1 63 6 4 . 9 22 24 . 107 4 24 . 18 49 5 135 21 18 211 26 35 4 108 Cannons 15 | . . 8 4 . . . . 1 . . . 2 . . . . . . . . . . . . . . . . . AOE 37 | . . . . . . . . . . . . . 1 . 7 . . . . 3 . 5 . . 21 . . . . Classes Destroyed 42 | 3 5 2 . 2 4 1 6 . 1 . 2 2 1 . 2 . 1 . . . . . . . 3 . . 1 6 Worker 35 | 1 2 . . . 5 . 4 . . . . . . . 5 . . . . 6 . 6 . . . . 6 . . Builder 18 | . . . . . 2 . 1 . . . . . 1 . 1 . . . . 1 . 1 . . . . 10 . 1 Tunneler 5 | 2 . . . . . . . . . . . . . . . . . . . 1 . 2 . . . . . . . Hauler 21 | . 2 . . . 7 . 4 . . . . . . . 1 . . . 1 1 . 4 . . . . . . 1 Recycler 10 | . 1 . . . . . 1 . . . . . . . 2 . . . . 3 . 2 . . . . 1 . . Minesweeper 1 | . . . . . . . . . . . . . . . . . 1 . . . . . . . . . . . . Mechanic 8 | . . . . . . . 1 . . . . . . . 4 . . . . . . . . . 1 . . . 2 Operator 8 | . . . . . 1 . . . . . . . . . 2 . . . . 1 . 2 . . . . . . 2 Drone 9 | . . . . . . . . . . . . . . . . . . . . . . . . . . . . . 9 Turret 2 | . . 2 . . . . . . . . . . . . . . . . . . . . . . . . . . . Watcher 15 | . 1 . . . 1 . . . . . . . 1 . 1 . . . . 2 . 1 . . . . 5 . 3 Swarmer 147 | . 6 6 . . 15 . 5 4 . . . 14 4 . 5 . 8 . 7 18 . 14 6 4 14 5 . 4 8 Cutter 4 | . . . . . . . . . . . . . . . 2 . . . . . . 2 . . . . . . . Saboteur 32 | . . . . . . . 2 . . . . . . . 4 . . . . . . 6 . . 18 . 1 . 1 Grunt 355 | 1 6 . . . 21 . 32 3 . . . . 4 . 49 . 8 . 7 19 . 59 8 9 97 5 17 . 10 Brawler 37 | . . . . . . . 2 . . . . . 1 . 3 . 1 . . . . 4 3 1 12 3 1 . 6 Duelist 44 | . . . . . . . 4 . . . . . 3 . 9 . 1 . . 1 . 9 2 1 6 3 1 . 4 Protector 39 | . . . . . . . 4 . . . . . . . 7 . . . . 1 . 3 . . 18 1 . . 5 Researcher 4 | . . . . . . . . . . . . . . . . . . . . . . . . . . . . 2 2 Sentry 63 | . . 1 4 . 7 . 6 . 1 . . . 4 . 7 . 2 . 1 4 . 10 2 2 . 2 . . 10 Demolisher 15 | . . . . . . . 1 . . . . . . . 1 . . . . 1 . 3 . . 8 . 1 . . Specialist 14 | . . . . . . . . . . . . 3 . . . . . . . . . 3 . . 5 . . . 3 Hunter 67 | . . . . . 4 . 5 . 2 . . 3 3 . 5 2 . . 2 4 . 10 . . 9 6 6 . 6 Programmer 96 | . . . . . 8 . 2 . . . . 3 6 . 21 1 . . 2 3 . 18 2 . 20 . 6 . 4 Heavy 3 | . . . . . . . . . . . . . . . 1 . . . . 1 . 1 . . . . . . . Behemoth 6 | . . . . . . . . . . . . 1 . . . 1 . . 1 . . . . . 2 1 . . . Compactor 6 | . . . . . . 1 . . . . . . . . . . . . . . 5 . . . . . . . . Quarantine Guard 1 | . . . . . . . . . . . . . . . . . . . . . . . . . . . 1 . . Enhanced Grunt 1 | . . . . . . . . . . . . . . . . . . . . . . . . . 1 . . . . Hotshot 15 | . . . . . . . . . . . . . . . . . . . . . . . . . . . . . 15 Decapitator 6 | . . . . . . . . . . . . . . . . . . . . . . . . . . . . . 6 Immortal 1 | . . . . . . . . . . . . . . . . . . . . . . . . . . . . . 1 Striker 16 | . . . . . . . . . . . . . . . . . . . . . . . . . 11 . . . 5 Executioner 20 | . . . . . . . . . . . . . . . . . . . . . . . . . 9 . . . 11 Alpha 7 2 | . . . . . . . . . . . . . . . . . . . . . . . . . . . . . 2 V-Series 1 | . . . . . . . . . . . . . . . . . . . . . . . . . . . . . 1 Subdweller 12 | . 2 10 . . . . . . . . . . . . . . . . . . . . . . . . . . . Bolteater 1 | . . . . 1 . . . . . . . . . . . . . . . . . . . . . . . . . Explorer 1 | . . . . 1 . . . . . . . . . . . . . . . . . . . . . . . . . Guru 1 | . . . . . . . . . . . . . . . . . . . . . . . . . . . . . 1 Scrapper 1 | . . . . . . . . . . . . . . . . . . . . . . . . . . . . . 1 Elite 2 | . . . . . . . . . . . . . . . . . . . . . . . . . . . . . 2 Scrapoid 3 | . . . . . . . . . . . . . 1 . . . . . . . . . . . . . . . 2 Z-Light 6 | . . . . . . . . . . . 6 . . . . . . . . . . . . . . . . . . Tinkerer 1 | . . . . . . . . . . . . . . . . . . . . . . . . . 1 . . . . Assembled 2 | . . . . . . . . . . . 2 . . . . . . . . . . . . . . . . . . Wasp 2 | . . . . . . . 2 . . . . . . . . . . . . . . . . . . . . . . Thug 6 | . . . . . . . . . . . . . . . . . 4 . . . . . . . 2 . . . . Butcher 1 | . . . . . . . . . . . . . . . . . 1 . . . . . . . . . . . . Bouncer 2 | . . . . . . . . . . . . . . . . . . . . . . . . . 2 . . . . Martyr 1 | . . . . . . . . . . . . . . . . . . . . . . . . . 1 . . . . Wizard 1 | . . . . . . . . . . . . . . . . . . . . . . . . . 1 . . . . Mutant 2 | . . . . . . . . . 1 . . . . . . . . . . . . . . 1 . . . . . Best Kill Streak 48 | 2 4 5 1 2 11 1 17 4 2 . 4 10 8 . 24 3 12 . 8 18 2 32 9 13 48 9 18 6 17 Combat Bots Only 48 | 1 3 3 1 2 11 1 16 4 2 . 4 10 7 . 23 3 12 . 8 15 2 28 9 13 48 9 6 4 17 Max Kills in Single Turn 7 | 1 1 2 1 1 4 1 3 1 1 . 1 1 2 . 7 1 2 . 2 4 1 5 2 2 4 2 2 3 3 Gunslinging 2 | . . 1 . . 1 . 2 . . . . . . . 1 . . . 1 1 . 1 . 1 2 1 . . 1 Exploded 4 | . . . . . . . . . . . . . 1 . 4 . . . . 3 . 3 . . 4 . . . . Melee . | . . . . . . . . . . . . . . . . . . . . . . . . . . . . . . Uniques/NPCs Destroyed 6 | . . . . . . . . . . . 1 . . . . . . . . 1 . . . . 2 . 2 . . Z-Imprinter (-6/Deep Caves) 6S-H0T (-4/Factory) Warlord (-4/Warlord) Fake God Mode (-4/Warlord) CL-0N3 (-3/Research) DW-4LL (-3/Research) Combat | -11 -10 -10 -9 -9 -6 -6 -6 -6 -6 -6 -6 -5 -5 -5 -5 -5 -5 -5 -4 -4 -4 -4 -4 -4 -4 -3 -3 -3 -3 -------- Run | Yrd Mat Sub Rec Scr Fac Was Fac Low Low Zio Dee Pro Fac Was Fac Upp Upp Zhi Pro Fac Was Fac Upp Upp War Pro Res Qua Frg Hostile Shots Fired 2884 | 4 77 145 16 4 307 . 357 22 26 27 37 98 66 . 269 19 27 . 46 102 . 283 24 30 365 74 149 21 289 Missed 1554 | 2 30 79 5 . 140 . 175 8 16 14 13 33 43 . 166 11 16 . 29 65 . 160 14 15 217 50 123 9 121 Hits 1330 | 2 47 66 11 4 167 . 182 14 10 13 24 65 23 . 103 8 11 . 17 37 . 123 10 15 148 24 26 12 168 Melee 13 | . . . . . . . 2 . . . . . . . . . . . . . . 1 1 . 2 . . . 7 Projectile 1317 | 2 47 66 11 4 167 . 180 14 10 13 24 65 23 . 103 8 11 . 17 37 . 122 9 15 146 24 26 12 161 AOE 12 | . . 2 . . 1 . . . . . . . . . 1 . . . . . . 1 . . 2 . 1 . 4 Critical Strikes 65 | . 1 1 1 . 1 . 8 . . . . 1 . . 6 . . . 2 4 . 7 . 2 8 . 1 1 21 Part Disruptions 5 | . . . . . . . . . . . . 1 . . . . . . . . . . . . 4 . . . . Damage Taken 26525 | 22 630 993 163 58 2011 . 2189 156 85 145 577 1051 501 . 2288 147 224 . 351 966 . 2852 184 296 4263 466 551 513 4843 Core 20626 | 17 504 746 129 48 1563 . 1507 115 54 94 421 628 406 . 1817 121 175 . 280 785 . 2276 144 234 3433 364 446 416 3903 Absorbed by Shields 88 | . . . . . . . 4 . . . . . . . 7 . . . . . . . . . . . . . 77 Redirected to Core 18402 | 17 419 686 114 31 1371 . 1384 104 54 90 352 601 353 . 1712 89 175 . 255 648 . 2047 130 211 2984 364 382 370 3459 Redirected to Shielding 174 | . . . . . . . . . . . . 174 . . . . . . . . . . . . . . . . . Ignored by Resistances 1268 | . . 23 10 5 243 . 677 67 37 52 154 . . . . . . . . . . . . . . . . . . Regen/Repaired (Parts) 60 | . 13 . . 2 9 . . . 20 . . . . 6 . . . . . . . . . . 10 . . . . Core Remaining (%) 94 | 97 . . . 92 . . . . . . . 100 . . . . . . 96 . . . . . . 87 . . . Volleys Fired 2662 | 6 77 82 18 5 218 16 184 16 11 . 48 50 69 5 226 10 36 17 47 113 58 272 39 38 534 65 105 20 277 Largest 4 | 2 2 3 3 3 3 3 3 4 4 . 4 4 4 3 3 3 3 1 3 3 3 3 3 3 3 3 3 3 3 Hottest 290 | 70 85 131 101 168 148 98 98 290 213 . 213 213 198 98 170 164 164 100 164 202 164 164 164 164 164 164 172 105 105 Shots Fired 7073 | 11 153 240 54 15 471 40 544 58 39 . 110 155 213 15 670 30 105 17 134 335 118 793 112 113 1408 194 313 52 561 Gun 6831 | 11 153 82 22 15 467 40 544 47 31 . 108 144 213 15 670 30 104 17 132 335 118 791 112 113 1398 194 313 52 560 Cannon 222 | . . 158 32 . . . . 11 8 . 2 11 . . . . . . . . . . . . . . . . . Launcher 10 | . . . . . . . . . . . . . . . . . . . . . . . . . 10 . . . . Special 10 | . . . . . 4 . . . . . . . . . . . 1 . 2 . . 2 . . . . . . 1 Kinetic 5332 | 5 77 216 54 7 378 40 544 53 31 . 108 144 207 15 449 20 70 15 87 223 116 527 76 75 875 129 209 40 542 Thermal 1681 | 6 76 24 . 5 90 . . 5 8 . 2 11 6 . 221 10 34 2 45 112 2 264 36 38 523 65 96 . . Explosive . | . . . . . . . . . . . . . . . . . . . . . . . . . . . . . . Electromagnetic 3 | . . . . 3 . . . . . . . . . . . . . . . . . . . . . . . . . Impact 38 | . . . . . . . . . . . . . . . . . . . . . . . . . . . 8 12 18 Entropic 10 | . . . . . . . . . . . . . . . . . . . . . . . . . 10 . . . . Robot Hit Streak 56 | 5 8 15 4 6 16 21 32 6 21 . 9 30 19 5 34 21 23 33 16 36 29 30 21 29 37 24 56 45 36 Robot Miss Streak 8 | 1 4 4 7 3 6 2 4 2 1 . 7 6 4 2 5 1 3 1 2 2 2 6 1 5 3 4 4 2 8 Penetration Max 2 | . . . . . 1 . 2 . 1 . 1 . 1 . 2 1 2 1 1 2 1 2 2 1 2 2 2 2 2 Secondary Targets 232 | . . 2 . . 9 1 20 . . . 1 8 5 . 28 . 6 . 4 13 1 40 5 4 60 4 7 . 14 Max Gunslinging Chain 2 | . . 1 . . 1 1 2 . . . 1 1 1 . 2 . 1 . 1 1 1 2 1 1 2 1 1 . 1 Capacitor 53 | . . . . . . . . . . . . . . . . . . . . . . . . . 53 . . . . Shots Hit Robots 5182 | 8 80 91 21 6 320 33 388 32 29 . 64 100 147 10 528 26 72 16 93 269 103 607 85 88 1151 146 252 46 371 Core Hits 2390 | 5 31 31 7 3 135 9 167 14 12 . 27 39 51 . 253 10 40 7 36 137 16 323 35 32 534 60 118 29 229 Critical Kills 155 | . . . . . 2 . 8 1 . . 2 1 4 . 17 2 6 . 1 6 . 19 4 1 30 . 6 . 45 Critical Parts Destroyed 217 | . . 1 2 . 14 . 14 . . . 1 2 7 . 19 1 3 1 2 14 1 37 3 3 33 7 14 . 38 Critical Strikes 658 | . 3 2 2 . 26 1 23 1 . . 4 3 13 . 80 8 13 3 11 49 10 95 16 10 136 15 44 2 88 Burn 242 | . 3 . . . 10 . . . . . . . 1 . 41 4 4 2 7 27 . 37 7 6 69 7 17 . . Destroy 415 | . . 2 2 . 16 1 23 1 . . 4 3 12 . 39 4 9 1 4 21 10 58 9 4 67 8 27 2 88 Blast 1 | . . . . . . . . . . . . . . . . . . . . 1 . . . . . . . . . Melee Attacks 2 | . . . . . . . . . . . . . . . . . . . . 2 . . . . . . . . . Impact . | . . . . . . . . . . . . . . . . . . . . . . . . . . . . . . Slashing . | . . . . . . . . . . . . . . . . . . . . . . . . . . . . . . Piercing . | . . . . . . . . . . . . . . . . . . . . . . . . . . . . . . Sneak Attacks 2 | . . . . . . . . . . . . . . . . . . . . 2 . . . . . . . . . Combat Hostiles . | . . . . . . . . . . . . . . . . . . . . . . . . . . . . . . Follow-up Attacks . | . . . . . . . . . . . . . . . . . . . . . . . . . . . . . . Damage Inflicted 196376 | 122 1086 1685 460 118 8027 764 11100 776 767 . 1620 2815 4846 315 21849 873 3103 634 2970 10741 3971 26227 3294 2911 46785 5173 10526 2302 20516 Guns 182894 | 103 1083 625 174 118 7218 764 11100 681 497 . 1620 2541 4519 315 19957 873 3103 634 2970 9936 3971 24501 3294 2911 41046 5173 10349 2302 20516 Cannons 1985 | . . 1060 286 . . . . 95 270 . . 274 . . . . . . . . . . . . . . . . . Explosions 11298 | . . . . . 809 . . . . . . . 327 . 1892 . . . . 805 . 1726 . . 5739 . . . . Melee . | . . . . . . . . . . . . . . . . . . . . . . . . . . . . . . Ramming 199 | 19 3 . . . . . . . . . . . . . . . . . . . . . . . . . 177 . . Kinetic 146026 | 52 503 1535 460 67 5660 764 11100 730 497 . 1620 2541 4424 315 14698 558 2359 556 1917 7236 3945 18779 2411 2010 29333 3838 7637 1164 19317 Thermal 39609 | 51 580 150 . 37 1577 . . 46 270 . . 274 422 . 6745 315 744 78 1053 3084 26 7003 883 901 11713 1335 2322 . . Explosive 1524 | . . . . . 790 . . . . . . . . . 339 . . . . 93 . 250 . . 52 . . . . Electromagnetic 604 | . . . . 14 . . . . . . . . . . 67 . . . . 328 . 195 . . . . . . . Impact 2727 | . . . . . . . . . . . . . . . . . . . . . . . . . . . 390 1138 1199 Slashing . | . . . . . . . . . . . . . . . . . . . . . . . . . . . . . . Piercing . | . . . . . . . . . . . . . . . . . . . . . . . . . . . . . . Entropic 5687 | . . . . . . . . . . . . . . . . . . . . . . . . . 5687 . . . . Highest Corruption 21 | . . . . . 2 2 2 1 1 1 . . . 10 10 3 3 3 3 . . 12 12 12 12 9 5 5 21 Average Corruption 5 | . . . . . 1 2 1 1 1 1 . . . 10 5 3 3 3 3 . . 6 12 12 6 9 2 5 11 Corruption Purged 27 | . . . . . . . 2 . . . . . . . 10 . . . . . . . . . . . . . 15 Corruption Blocked . | . . . . . . . . . . . . . . . . . . . . . . . . . . . . . . Effects 318 | . . . . . 26 4 3 . . . . . . 2 26 8 5 3 7 . . 32 21 21 57 20 8 5 70 Message Errors 63 | . . . . . 7 1 . . . . . . . . 6 2 2 2 . . . 4 3 3 12 4 2 . 15 Matter Fused 65 | . . . . . 6 1 1 . . . . . . 1 6 1 . 1 2 . . 3 3 4 9 4 3 2 18 Heat Flow Errors 43 | . . . . . 3 . . . . . . . . . 3 2 1 . 1 . . 7 3 4 3 5 . 1 10 Energy Discharges 28 | . . . . . 3 1 . . . . . . . . 2 . 1 . . . . 2 . 5 4 2 2 . 6 Parts Rejected 4 | . . . . . . . . . . . . . . . . . . . . . . . 1 . 2 . . 1 . Parts Fused 4 | . . . . . . . . . . . . . . . . . . . . . . . . . 3 . . . 1 Data Loss (minor) 31 | . . . . . 1 . 1 . . . . . . . 3 2 . . 2 . . 5 4 2 5 2 . . 4 Data Loss (major) 9 | . . . . . 2 . 1 . . . . . . . . 1 . . . . . . . 2 1 . . 1 1 Misfires 9 | . . . . . . 1 . . . . . . . . 2 . . . . . . 1 1 . 3 1 . . . Alerts 5 | . . . . . . . . . . . . . . 1 1 . . . . . . 1 . . . . . . 2 Misdirections 5 | . . . . . . . . . . . . . . . . . . . . . . . . . . . . . 5 Weapon Failures 52 | . . . . . 4 . . . . . . . . . 3 . 1 . 2 . . 9 6 1 15 2 1 . 8 Overload Shots . | . . . . . . . . . . . . . . . . . . . . . . . . . . . . . . Overflow Damage 849 | . . . . . . . . . 10 . . 6 . . 290 . . . . 14 . 281 . . 151 . 97 . . Projectiles 16 | . . . . . . . . . 10 . . 6 . . . . . . . . . . . . . . . . . Explosions 736 | . . . . . . . . . . . . . . . 290 . . . . 14 . 281 . . 151 . . . . Melee 97 | . . . . . . . . . . . . . . . . . . . . . . . . . . . 97 . . Knockbacks 24 | . . 7 1 . . . . . . . . . . . . . . . . . . . . . . . 7 1 8 Impact 15 | . . . . . . . . . . . . . . . . . . . . . . . . . . . 6 1 8 Kinetic 8 | . . 7 1 . . . . . . . . . . . . . . . . . . . . . . . . . . Secondary 1 | . . . . . . . . . . . . . . . . . . . . . . . . . . . 1 . . Self-Inflicted Damage 432 | . . . . . . . . . . . . . . . 25 . . . . . . 157 . . 162 . 88 . . Shots 5 | . . . . . . . . . . . . . . . 1 . . . . . . 2 . . 2 . . . . Rammed 2 | . . . . . . . . . . . . . . . . . . . . . . . . . . . 2 . . Targets Rammed 7 | 4 1 . . . . . . . . . . . . . . . . . . . . . . . . . 2 . . Kicked 5 | 4 1 . . . . . . . . . . . . . . . . . . . . . . . . . . . . Crushed . | . . . . . . . . . . . . . . . . . . . . . . . . . . . . . . Highest Temperature 339 | 33 105 9 225 211 241 146 154 219 200 . 252 260 335 15 339 116 263 . 108 180 60 169 238 204 302 162 102 127 158 Average Temperature 57 | 12 23 3 71 95 51 54 35 90 91 . 39 55 56 15 101 54 88 . 55 66 40 63 70 69 47 31 44 127 87 Received Heat Transfer 4124 | 12 180 264 63 24 459 . 864 39 18 49 210 33 102 . 328 12 36 . 9 21 . 399 27 84 359 12 36 18 466 Effects 4 | . . . . . . . . . . . . . . . 1 . . . . . . . . . 3 . . . . Energy Bleed 1 | . . . . . . . . . . . . . . . 1 . . . . . . . . . . . . . . Interference 3 | . . . . . . . . . . . . . . . . . . . . . . . . . 3 . . . . Siege Activations . | . . . . . . . . . . . . . . . . . . . . . . . . . . . . . . Martial Activations . | . . . . . . . . . . . . . . . . . . . . . . . . . . . . . . Shielding Activations . | . . . . . . . . . . . . . . . . . . . . . . . . . . . . . . Robots Disrupted . | . . . . . . . . . . . . . . . . . . . . . . . . . . . . . . Combat Hostiles . | . . . . . . . . . . . . . . . . . . . . . . . . . . . . . . Robots Corrupted 3 | . . . . . . . . . . . . . . . . . . . . . . . . . . . 2 . 1 Combat Hostiles 1 | . . . . . . . . . . . . . . . . . . . . . . . . . . . . . 1 Parts Fried 11 | . . . . . . . . . . . . . . . . . . . . 2 . 1 . . 3 . 3 2 . Impact Corruptions 10 | . . . . . . . . . . . . . . . . . . . . . . . . . . . 5 2 3 Robots Melted 14 | . . . . . 2 . . . . . . . . . . . . 1 3 . . 2 2 . 3 . 1 . . Combat Hostiles 12 | . . . . . 1 . . . . . . . . . . . . 1 2 . . 2 2 . 3 . 1 . . Parts Melted 315 | . 2 1 . . 15 . 1 . 1 . . . 1 . 61 4 8 . 13 39 . 31 7 9 95 12 15 . . Heat Transferred 83033 | 148 1739 370 . 100 4500 . . 50 350 . . 300 450 . 12484 900 1700 300 2550 7409 50 14084 2250 2200 23394 2951 4754 . . Parts Sabotaged 2 | . . . . . . . 2 . . . . . . . . . . . . . . . . . . . . . . Parts Stolen . | . . . . . . . . . . . . . . . . . . . . . . . . . . . . . . Parts Stripped . | . . . . . . . . . . . . . . . . . . . . . . . . . . . . . . Power Chain Reactions . | . . . . . . . . . . . . . . . . . . . . . . . . . . . . . . Alert | -11 -10 -10 -9 -9 -6 -6 -6 -6 -6 -6 -6 -5 -5 -5 -5 -5 -5 -5 -4 -4 -4 -4 -4 -4 -4 -3 -3 -3 -3 ------- Run | Yrd Mat Sub Rec Scr Fac Was Fac Low Low Zio Dee Pro Fac Was Fac Upp Upp Zhi Pro Fac Was Fac Upp Upp War Pro Res Qua Frg Maximum Alert Level 5 | . . . . . 5 4 5 . . . . . 5 2 5 . . . . 5 4 5 . . . . 5 4 5 Low Security (%) 20 | 100 100 . 100 . 28 . . . . . . . 33 . . . . . . . . . . . . . . . . Level 1 6 | . . . . . 20 . 1 . . . . . 20 . . . . . . 2 . . . . . . 9 . . Level 2 8 | . . . . . 21 . 14 . . . . . 6 100 9 . . . . 12 . . . . . . 6 . . Level 3 15 | . . . . . 16 54 6 . . . . . 17 . 9 . . . . 10 88 29 . . . . 27 . 9 Level 4 12 | . . . . . 11 45 4 . . . . . 18 . 8 . . . . 10 11 10 . . . . 18 100 16 Level 5 22 | . . . . . . . 40 . . . . . 2 . 5 . . . . 61 . 18 . . . . 33 . 74 High Security 13 | . . . . . 1 . 32 . . . . . . . 65 . . . . 3 . 41 . . . . 3 . . Max Security . | . . . . . . . . . . . . . . . . . . . . . . . . . . . . . . Sterilizations 2 | . . . . . . . . . . . . . . . 1 . . . . . . 1 . . . . . . . Peak Influence 6519 | 20 139 . 165 . 1647 1116 4381 . . . . . 1760 628 5340 . . . . 2436 1100 6519 . . . . 2325 1486 3826 Initial 1307 | . . . 57 . . 1100 722 . . . . . 138 616 411 . . . . 231 1100 743 . . . . 243 1307 830 Average 1480 | 1 68 . 124 . 529 1084 2364 . . . . . 593 608 2911 . . . . 1616 1082 2916 . . . . 1265 1418 2226 Influence Increases 39876 | 35 408 220 204 . 2478 42 4778 160 70 . . 550 2078 12 5337 95 511 18 527 2731 42 6508 483 403 4948 592 2692 239 3715 Destroy 0b10 Robot/C 22440 | 20 240 180 80 . 1200 . 2280 140 60 . . 480 780 . 2720 80 440 . 420 1300 . 3240 460 360 4340 500 900 120 2100 Destroy 0b10 Robot/NC 1090 | 15 30 . 5 . 85 . 140 . . . . 10 20 . 135 5 5 15 5 95 . 160 . . 110 5 130 . 120 Destroy Leader 2830 | . 56 10 . . 318 . 422 20 10 . . 60 192 . 398 10 30 . 50 228 . 496 20 20 . 60 162 10 258 Allied During Kill 3689 | . . . . . 33 . 1203 . . . . . 222 . 428 . 36 3 37 317 . 369 3 23 138 27 642 . 208 Successful Hack 157 | . 19 . 6 . 24 . . . . . . . 33 . 42 . . . . 14 . 12 . . . . 7 . . Select Force Hacks 170 | . . . 60 . 30 . 30 . . . . . . . 50 . . . . . . . . . . . . . . Disable Machine 2910 | . . . 45 . 150 . 405 . . . . . 195 . 525 . . . . 270 . 690 . . . . 180 45 405 Anti-Garrison Action 600 | . . . . . . . . . . . . . 150 . . . . . . . . 150 . . . . 150 . 150 Destroy Structure 3620 | . 3 . 8 . 248 42 223 . . . . . 306 12 784 . . . . 402 42 926 . . . . 386 34 204 Partial Spotted 525 | . 30 . . . 150 . 30 . . . . . 75 . 30 . . . . 75 . 60 . . . . 30 . 45 Lose Combat Pursuer 1845 | . 30 30 . . 240 . 45 . . . . . 105 . 225 . . . 15 30 . 405 . . 360 . 105 30 225 Influence Decreases 36825 | 35 306 201 262 63 831 1181 1434 1790 643 2173 . 330 538 1184 585 2198 786 2980 160 662 1664 1051 2593 1060 4520 4410 729 1088 1368 Entered New Map 27836 | . . 50 64 63 . 1071 310 1620 523 2173 . . 82 1144 177 1976 616 2962 . 136 1584 319 2413 838 3752 4180 119 1018 646 Time Decay 6499 | 35 306 151 198 . 501 110 404 170 120 . . 310 356 20 198 222 170 18 160 286 80 362 180 222 548 230 490 60 592 Lost Part 50 | . . . . . . . . . . . . 20 . . 10 . . . . . . 10 . . . . . . 10 Lost Ally 1840 | . . . . . 180 . 270 . . . . . 100 20 200 . . . . 240 . 360 . . 220 . 120 10 120 Purge Threat 600 | . . . . . 150 . 450 . . . . . . . . . . . . . . . . . . . . . . Squads Dispatched 211 | . 1 . . . 34 . 41 . . . . . 16 . 38 . 1 . . 20 . 33 . . . 1 18 1 7 Investigation 56 | . 1 . . . 13 . 9 . . . . . 8 . 8 . . . . 4 . 8 . . . . 1 . 4 Extermination 23 | . . . . . 11 . 3 . . . . . 2 . 1 . . . . 1 . 2 . . . . 2 1 . Reinforcement 40 | . . . . . 9 . 8 . . . . . 3 . 5 . . . . 6 . 3 . . . . 5 . 1 Assault 80 | . . . . . 1 . 20 . . . . . 3 . 24 . 1 . . 2 . 19 . . . 1 7 . 2 Garrison 12 | . . . . . . . 1 . . . . . . . . . . . . 7 . 1 . . . . 3 . . Intercept . | . . . . . . . . . . . . . . . . . . . . . . . . . . . . . . Searches Triggered . | . . . . . . . . . . . . . . . . . . . . . . . . . . . . . . Unchained Authorized 3 | . . . . . . . . . . . . . . . . . . . . 1 . . . . . . 2 . . Construction Impeded 10 | . . . . . 1 . 2 . . . . . 2 . . . . . . 3 . . . . . . 2 . . Haulers Reinforced 9 | . . . . . 4 . 4 . . . . . . . . . . . . 1 . . . . . . . . . Active Scanning Responses . | . . . . . . . . . . . . . . . . . . . . . . . . . . . . . . Cargo Convoy Interrupts 2 | . . . . . . . . . . . . . . . . . . . . 1 . . . . . . 1 . . Stealth | -11 -10 -10 -9 -9 -6 -6 -6 -6 -6 -6 -6 -5 -5 -5 -5 -5 -5 -5 -4 -4 -4 -4 -4 -4 -4 -3 -3 -3 -3 --------- Run | Yrd Mat Sub Rec Scr Fac Was Fac Low Low Zio Dee Pro Fac Was Fac Upp Upp Zhi Pro Fac Was Fac Upp Upp War Pro Res Qua Frg Distress Signals 33 | . . . . . 2 . 5 . . . . . . . 4 . . . . 2 . 8 . . 2 . 1 . 9 Communications Jammed . | . . . . . . . . . . . . . . . . . . . . . . . . . . . . . . Distress Signals . | . . . . . . . . . . . . . . . . . . . . . . . . . . . . . . Times Spotted 1485 | 1 23 23 3 8 88 6 147 7 4 14 15 22 51 6 171 4 23 . 22 68 7 204 23 18 268 21 77 9 152 Peak Tracking Total 22 | 1 4 6 1 6 12 2 22 4 2 15 4 6 6 6 10 3 5 . 5 10 3 15 9 7 20 7 12 4 11 Tactical Retreats 70 | . 1 1 . . 8 . 3 . . 1 1 . 3 . 7 . . . 1 1 1 11 . . 16 . 5 2 8 ID Masks Used 1 | . . . . . . . . . . . . . . . . . . . . . . . . . . . . . 1 IFF Responses 23 | . . . . . . . . . . . . . . . . . . . . . . . . . . . . . 23 Traps | -11 -10 -10 -9 -9 -6 -6 -6 -6 -6 -6 -6 -5 -5 -5 -5 -5 -5 -5 -4 -4 -4 -4 -4 -4 -4 -3 -3 -3 -3 ------- Run | Yrd Mat Sub Rec Scr Fac Was Fac Low Low Zio Dee Pro Fac Was Fac Upp Upp Zhi Pro Fac Was Fac Upp Upp War Pro Res Qua Frg Traps Triggered 33 | . . . . . 5 . 2 . . . . . 1 . 3 . . . . 1 . 6 . . 3 . . . 12 Indirectly . | . . . . . . . . . . . . . . . . . . . . . . . . . . . . . . Trap Hack Attempts . | . . . . . . . . . . . . . . . . . . . . . . . . . . . . . . Triggered . | . . . . . . . . . . . . . . . . . . . . . . . . . . . . . . Disarmed . | . . . . . . . . . . . . . . . . . . . . . . . . . . . . . . Reprogrammed . | . . . . . . . . . . . . . . . . . . . . . . . . . . . . . . Reused . | . . . . . . . . . . . . . . . . . . . . . . . . . . . . . . Traps Extracted . | . . . . . . . . . . . . . . . . . . . . . . . . . . . . . . Installed . | . . . . . . . . . . . . . . . . . . . . . . . . . . . . . . Triggered . | . . . . . . . . . . . . . . . . . . . . . . . . . . . . . . Machines | -11 -10 -10 -9 -9 -6 -6 -6 -6 -6 -6 -6 -5 -5 -5 -5 -5 -5 -5 -4 -4 -4 -4 -4 -4 -4 -3 -3 -3 -3 ---------- Run | Yrd Mat Sub Rec Scr Fac Was Fac Low Low Zio Dee Pro Fac Was Fac Upp Upp Zhi Pro Fac Was Fac Upp Upp War Pro Res Qua Frg Machines Disabled 235 | . 1 2 3 2 10 . 27 . 1 3 . 1 14 . 35 . . 2 . 19 . 47 2 2 8 . 13 3 40 Max in Single Turn 12 | . 1 1 1 1 2 . 5 . 1 1 . 1 5 . 8 . . 1 . 9 . 12 1 1 2 . 1 1 2 Garrison Access 9 | . . . . . . . 2 . . . . . 2 . 1 . . . . . . 2 . . . . 1 . 1 Machines Repaired . | . . . . . . . . . . . . . . . . . . . . . . . . . . . . . . Machines Dismantled . | . . . . . . . . . . . . . . . . . . . . . . . . . . . . . . Machines Sabotaged . | . . . . . . . . . . . . . . . . . . . . . . . . . . . . . . Overloaded Fab Kills . | . . . . . . . . . . . . . . . . . . . . . . . . . . . . . . Hacking | -11 -10 -10 -9 -9 -6 -6 -6 -6 -6 -6 -6 -5 -5 -5 -5 -5 -5 -5 -4 -4 -4 -4 -4 -4 -4 -3 -3 -3 -3 --------- Run | Yrd Mat Sub Rec Scr Fac Was Fac Low Low Zio Dee Pro Fac Was Fac Upp Upp Zhi Pro Fac Was Fac Upp Upp War Pro Res Qua Frg Machines Accessed 123 | . 4 1 7 6 19 . 12 2 . . . . 15 . 13 . . 4 . 8 . 15 1 . 6 . 3 2 5 Terminals 39 | . 3 . 3 . 7 . 3 1 . . . . 6 . 5 . . . . 3 . 4 . . . . 2 2 . Fabricators 5 | . . . . . 1 . . . . . . . . . 1 . . . . 1 . 1 . . . . . . 1 Repair Stations 4 | . 1 . . . 2 . . . . . . . . . . . . . . . . 1 . . . . . . . Recycling Units 42 | . . . 2 . 8 . 6 . . . . . 7 . 5 . . . . 4 . 6 . . . . 1 . 3 Scanalyzers 4 | . . . . . 1 . 1 . . . . . . . 1 . . . . . . 1 . . . . . . . Garrison Access 8 | . . . . . . . 2 . . . . . 2 . 1 . . . . . . 2 . . . . . . 1 Total Hacks 300 | . 13 9 17 19 46 . 26 2 . . . . 27 . 28 . . 17 . 11 . 31 1 . 20 . 15 10 8 Successful 185 | . 8 9 12 19 20 . 15 2 . . . . 12 . 13 . . 17 . 6 . 17 1 . 20 . 7 4 3 Failed 115 | . 5 . 5 . 26 . 11 . . . . . 15 . 15 . . . . 5 . 14 . . . . 8 6 5 Catastrophic 17 | . . . 1 . 3 . 1 . . . . . 3 . 2 . . . . . . 3 . . . . 2 . 2 Database Lockouts . | . . . . . . . . . . . . . . . . . . . . . . . . . . . . . . Manual 164 | . 10 . 8 . 39 . 11 . . . . 1 21 . 24 . . . . 9 . 22 . . . . 7 7 5 Terminals 113 | . 10 . 6 . 17 . 12 1 . . . . 14 . 12 . . . . 4 . 13 . . . . 14 10 . Fabricators 12 | . . . . . 5 . . . . . . . . . 2 . . . . 2 . 1 . . . . . . 2 Repair Stations 8 | . 3 . . . 4 . . . . . . . . . . . . . . . . 1 . . . . . . . Recycling Units 65 | . . . 2 . 16 . 7 . . . . . 10 . 10 . . . . 5 . 9 . . . . 1 . 5 Scanalyzers 9 | . . . . . 4 . 1 . . . . . . . 1 . . . . . . 3 . . . . . . . Garrison Access 17 | . . . . . . . 6 . . . . . 3 . 3 . . . . . . 4 . . . . . . 1 Terminal Hacks 101 | . 2 9 10 19 4 . 5 2 . . . . 2 . 2 . . 17 . . . 2 1 . 20 . 5 1 . Record 48 | . . 8 9 13 . . . 1 . . . . . . . . . 5 . . . . . . 12 . . . . Part Schematic 4 | . . . . . . . . . . . . . . . . . . 4 . . . . . . . . . . . Robot Analysis 13 | . 1 . 1 6 . . . . . . . . . . . . . 4 . . . . . . . . 1 . . Prototype ID Bank 12 | . . . . . . . . . . . . . . . . . . 4 . . . . . . 8 . . . . Open Door 2 | . . . . . . . . 1 . . . . . . . . . . . . . . 1 . . . . . . Level Access Points 1 | . . . . . 1 . . . . . . . . . . . . . . . . . . . . . . . . Branch Access Points 4 | . . . . . . . . . . . . . 1 . . . . . . . . 1 . . . . 1 1 . Terminal Index 1 | . . . . . . . . . . . . . . . . . . . . . . . . . . . 1 . . Fabricator Index 1 | . . . . . . . . . . . . . . . 1 . . . . . . . . . . . . . . Recycling Unit Index 6 | . . . . . 1 . 1 . . . . . 1 . 1 . . . . . . 1 . . . . 1 . . Scanalyzer Index 1 | . . . . . . . . . . . . . . . . . . . . . . . . . . . 1 . . Alert Level 2 | . 1 . . . . . 1 . . . . . . . . . . . . . . . . . . . . . . Unreport Threat 4 | . . . . . 1 . 3 . . . . . . . . . . . . . . . . . . . . . . Hauler Manifests 1 | . . . . . 1 . . . . . . . . . . . . . . . . . . . . . . . . Proto ID Catalog 1 | . . 1 . . . . . . . . . . . . . . . . . . . . . . . . . . . Fabricator Hacks 1 | . . . . . . . . . . . . . . . . . . . . 1 . . . . . . . . . Network Status 1 | . . . . . . . . . . . . . . . . . . . . 1 . . . . . . . . . Repair Station Hacks 4 | . 2 . . . 2 . . . . . . . . . . . . . . . . . . . . . . . . Scan Component 2 | . 1 . . . 1 . . . . . . . . . . . . . . . . . . . . . . . . Repair 2 | . 1 . . . 1 . . . . . . . . . . . . . . . . . . . . . . . . Recycling Unit Hacks . | . . . . . . . . . . . . . . . . . . . . . . . . . . . . . . Scanalyzer 2 | . . . . . . . . . . . . . . . . . . . . . . 2 . . . . . . . Insert Component 1 | . . . . . . . . . . . . . . . . . . . . . . 1 . . . . . . . Analyze 1 | . . . . . . . . . . . . . . . . . . . . . . 1 . . . . . . . Garrison Access Hacks 5 | . . . . . . . 2 . . . . . 1 . 1 . . . . . . 1 . . . . . . . Seal Access 5 | . . . . . . . 2 . . . . . 1 . 1 . . . . . . 1 . . . . . . . Unauthorized Hacks 72 | . 4 . 2 . 14 . 8 . . . . . 9 . 10 . . . . 5 . 12 . . . . 2 3 3 Terminals 22 | . 3 . . . 3 . 1 . . . . . 3 . 3 . . . . 1 . 4 . . . . 1 3 . Track 2 | . . . . . 1 . . . . . . . . . . . . . . . . . . . . . . 1 . Assimilate 4 | . . . . . . . . . . . . . 2 . . . . . . 1 . . . . . . . 1 . Botnet 14 | . 3 . . . 2 . 1 . . . . . 1 . 3 . . . . . . 2 . . . . 1 1 . Operators 1 | . . . . . . . . . . . . . . . . . . . . . . 1 . . . . . . . Skim 1 | . . . . . . . . . . . . . . . . . . . . . . 1 . . . . . . . Fabricators 4 | . . . . . 2 . . . . . . . . . 1 . . . . . . 1 . . . . . . . Liberate 2 | . . . . . 1 . . . . . . . . . . . . . . . . 1 . . . . . . . Haulers 1 | . . . . . 1 . . . . . . . . . . . . . . . . . . . . . . . . Download 1 | . . . . . . . . . . . . . . . 1 . . . . . . . . . . . . . . Repair Stations 3 | . 1 . . . 1 . . . . . . . . . . . . . . . . 1 . . . . . . . Mechanics 1 | . . . . . . . . . . . . . . . . . . . . . . 1 . . . . . . . Patch 2 | . 1 . . . 1 . . . . . . . . . . . . . . . . . . . . . . . . Recycling Units 39 | . . . 2 . 7 . 6 . . . . . 6 . 5 . . . . 4 . 5 . . . . 1 . 3 Tunnel 2 | . . . 2 . . . . . . . . . . . . . . . . . . . . . . . . . . Fedlink 20 | . . . . . 6 . 4 . . . . . 4 . 2 . . . . 2 . 1 . . . . . . 1 Scrapoids 11 | . . . . . 1 . . . . . . . 1 . 2 . . . . 2 . 3 . . . . 1 . 1 Scraphulk 6 | . . . . . . . 2 . . . . . 1 . 1 . . . . . . 1 . . . . . . 1 Scanalyzers 4 | . . . . . 1 . 1 . . . . . . . 1 . . . . . . 1 . . . . . . . Researchers 1 | . . . . . . . . . . . . . . . . . . . . . . 1 . . . . . . . Extract 3 | . . . . . 1 . 1 . . . . . . . 1 . . . . . . . . . . . . . . Garrison Access . | . . . . . . . . . . . . . . . . . . . . . . . . . . . . . . Data Cores Recovered 2 | . . . . . 1 . . . . . . . . . . . . . . . . 1 . . . . . . . Used 1 | . . . . . 1 . . . . . . . . . . . . . . . . . . . . . . . . Hacking Detections 62 | . 3 . 2 . 14 . 4 . . . . . 8 . 11 . . . . 4 . 9 . . . . 2 2 3 Full Trace Events 11 | . . . 2 . 3 . 1 . . . . . 2 . . . . . . . . 2 . . . . . . 1 Feedback Events . | . . . . . . . . . . . . . . . . . . . . . . . . . . . . . . Feedback Blocked . | . . . . . . . . . . . . . . . . . . . . . . . . . . . . . . Robot Schematics Acquired 55 | . . . . . . . . . . . . . . . . . . . . . . . . . . . 54 1 . Robots Built . | . . . . . . . . . . . . . . . . . . . . . . . . . . . . . . Authchips . | . . . . . . . . . . . . . . . . . . . . . . . . . . . . . . Time . | . . . . . . . . . . . . . . . . . . . . . . . . . . . . . . Total Robot Build Rating . | . . . . . . . . . . . . . . . . . . . . . . . . . . . . . . Part Schematics Acquired 43 | . . . . . 8 . 11 . . . . . . . 5 . . 4 . . . 1 . . . . . 8 6 Parts Built . | . . . . . . . . . . . . . . . . . . . . . . . . . . . . . . Authchips . | . . . . . . . . . . . . . . . . . . . . . . . . . . . . . . Time . | . . . . . . . . . . . . . . . . . . . . . . . . . . . . . . Total Part Build Rating . | . . . . . . . . . . . . . . . . . . . . . . . . . . . . . . Part Studies Acquired . | . . . . . . . . . . . . . . . . . . . . . . . . . . . . . . Parts Repaired 2 | . 1 . . . 1 . . . . . . . . . . . . . . . . . . . . . . . . Time 94 | . 26 . . . 68 . . . . . . . . . . . . . . . . . . . . . . . . Parts Recycled . | . . . . . . . . . . . . . . . . . . . . . . . . . . . . . . Recycled Matter . | . . . . . . . . . . . . . . . . . . . . . . . . . . . . . . Retrieved Matter . | . . . . . . . . . . . . . . . . . . . . . . . . . . . . . . Retrieved Components . | . . . . . . . . . . . . . . . . . . . . . . . . . . . . . . Parts Scanalyzed 1 | . . . . . . . . . . . . . . . . . . . . . . 1 . . . . . . . Part Schematics Acquired 1 | . . . . . . . . . . . . . . . . . . . . . . 1 . . . . . . . Parts Damaged . | . . . . . . . . . . . . . . . . . . . . . . . . . . . . . . Bothacking | -11 -10 -10 -9 -9 -6 -6 -6 -6 -6 -6 -6 -5 -5 -5 -5 -5 -5 -5 -4 -4 -4 -4 -4 -4 -4 -3 -3 -3 -3 ------------ Run | Yrd Mat Sub Rec Scr Fac Was Fac Low Low Zio Dee Pro Fac Was Fac Upp Upp Zhi Pro Fac Was Fac Upp Upp War Pro Res Qua Frg Used RIF Installer . | . . . . . . . . . . . . . . . . . . . . . . . . . . . . . . Robots Hacked 5 | . . . . . 2 . . . . . . . . . . . 1 . . 2 . . . . . . . . . Non-combat 4 | . . . . . 2 . . . . . . . . . . . . . . 2 . . . . . . . . . Combat 1 | . . . . . . . . . . . . . . . . . 1 . . . . . . . . . . . . Robot Hacks Applied 7 | . . . . . 3 . . . . . . . . . . . 1 . 1 2 . . . . . . . . . parse_system 3 | . . . . . . . . . . . . . . . . . 1 . 1 1 . . . . . . . . . find_chute 4 | . . . . . 3 . . . . . . . . . . . . . . 1 . . . . . . . . . Relay Couplers Released 7 | . . . . . . . . . . . . . 1 . 2 . . . . . . . . . . . 2 . 2 Machine Destruction 6 | . . . . . . . . . . . . . 1 . 2 . . . . . . . . . . . 1 . 2 Programmers 1 | . . . . . . . . . . . . . . . . . . . . . . . . . . . 1 . . Fabnet Peak Effective % . | . . . . . . . . . . . . . . . . . . . . . . . . . . . . . . Robots Rewired 19 | . . . . . 1 . . . . . . . 1 . . . 3 . . . . . 2 5 5 2 . . . Allies Hacked 5 | . . . . . . . 2 . . . . . . . . . . . . . . 1 . . . . 1 . 1 Hacks Repelled . | . . . . . . . . . . . . . . . . . . . . . . . . . . . . . . Allies | -11 -10 -10 -9 -9 -6 -6 -6 -6 -6 -6 -6 -5 -5 -5 -5 -5 -5 -5 -4 -4 -4 -4 -4 -4 -4 -3 -3 -3 -3 -------- Run | Yrd Mat Sub Rec Scr Fac Was Fac Low Low Zio Dee Pro Fac Was Fac Upp Upp Zhi Pro Fac Was Fac Upp Upp War Pro Res Qua Frg Total Allies 119 | . . . . . 9 19 2 . . 7 . . 9 . 11 . 3 . . 11 . 22 2 5 5 2 5 1 6 Largest Group 19 | . . . . . 5 19 18 . . 7 . . 4 1 7 1 4 4 4 8 . 10 2 7 7 2 7 1 6 Highest-Rated Group 684 | . . . . . 143 684 659 . . 167 . . 264 47 329 120 206 206 206 418 . 526 95 333 333 89 412 26 459 Highest-Rated Ally 139 | . . . . . 41 50 123 . . 31 . . 123 47 123 120 120 116 116 116 . 123 48 48 56 47 67 26 139 Total Orders 64 | . . . . . . . 3 . . . . . 5 . . . . . . 3 . 7 . . 15 . 31 . . STAY 51 | . . . . . . . 2 . . . . . 4 . . . . . . 3 . 4 . . 12 . 26 . . FOLLOW 11 | . . . . . . . 1 . . . . . 1 . . . . . . . . 3 . . 1 . 5 . . EXPLORE 2 | . . . . . . . . . . . . . . . . . . . . . . . . . 2 . . . . Ally Attacks 1169 | . . . . . 67 84 214 . . . . . 77 8 159 . 4 . 2 114 . 164 . 1 60 . 106 . 109 Total Damage 32826 | . . . . . 923 2174 7701 . . . . . 1836 82 4614 . 152 . 70 2754 . 4759 . 23 2396 . 2934 . 2408 Kills 231 | . . . . . 6 6 71 . . . . . 16 . 33 . 2 . 1 21 . 36 . 1 9 . 17 . 12 Allies Corrupted 6 | . . . . . . . 2 . . . . . . . . . . . . . . 1 . . 1 . 2 . . Allies Melted 4 | . . . . 1 . . 2 . . . . . . . . . . . . . . . . . 1 . . . . Intel | -11 -10 -10 -9 -9 -6 -6 -6 -6 -6 -6 -6 -5 -5 -5 -5 -5 -5 -5 -4 -4 -4 -4 -4 -4 -4 -3 -3 -3 -3 ------- Run | Yrd Mat Sub Rec Scr Fac Was Fac Low Low Zio Dee Pro Fac Was Fac Upp Upp Zhi Pro Fac Was Fac Upp Upp War Pro Res Qua Frg Active Infowar (turns) 23787 | 311 814 1830 413 1357 3034 222 1449 348 252 218 963 694 809 44 1207 476 344 134 334 654 167 1407 372 471 2217 482 1343 127 1294 Zeronet 397 | . . . . . . . . . . . . . . . . . . . . 177 167 53 . . . . . . . Terrain 5721 | . . . . . . . . . . . 148 1 238 16 541 269 344 134 334 232 . 1404 372 469 268 . 308 126 517 Seismic 23781 | 311 814 1830 413 1357 3034 222 1449 348 252 218 963 694 809 44 1207 476 344 134 334 654 167 1407 372 471 2213 482 1343 127 1292 T.N.C. 2928 | . 383 1830 413 302 . . . . . . . . . . . . . . . . . . . . . . . . . Triangulation 5528 | . . . . . 1052 . 10 348 58 . . . . . . . . . . 422 167 1211 372 471 1417 . . . . Cloaking 2 | . . . . . . . . . . . . . . . . . . . . . . . . . . . . . 2 ID Mask 22 | . . . . . . . . . . . . . . . . . . . . . . . . . . . . . 22 Robot Analysis Total 103 | . 1 . 1 6 . . . . . . . . . . . . . 4 . . . . . . . . 91 . . Derelict Logs Recovered 15 | . . 1 . . . . . 2 1 1 . 1 . . . 2 1 . 3 . . . 1 2 . . . . . Drone Launches 1 | . . . . . . . . . . . . . . . . . . . . . . . . . 1 . . . . Drone Recoveries . | . . . . . . . . . . . . . . . . . . . . . . . . . . . . . . Exploration | -11 -10 -10 -9 -9 -6 -6 -6 -6 -6 -6 -6 -5 -5 -5 -5 -5 -5 -5 -4 -4 -4 -4 -4 -4 -4 -3 -3 -3 -3 ------------- Run | Yrd Mat Sub Rec Scr Fac Was Fac Low Low Zio Dee Pro Fac Was Fac Upp Upp Zhi Pro Fac Was Fac Upp Upp War Pro Res Qua Frg Turns Passed 24666 | 472 814 1830 413 1357 3041 222 1449 348 252 218 963 694 809 44 1207 476 344 134 334 654 167 1407 372 471 2362 482 1343 127 1860 Spaces Moved 44476 | 375 1036 3402 938 2655 5052 356 2170 1086 828 855 2582 1199 1448 149 1560 1021 705 184 594 1425 356 2425 918 877 4019 1144 1655 362 3100 Core 32 | 32 . . . . . . . . . . . . . . . . . . . . . . . . . . . . . Treads . | . . . . . . . . . . . . . . . . . . . . . . . . . . . . . . Legs 480 | 343 137 . . . . . . . . . . . . . . . . . . . . . . . . . . . . Wheels . | . . . . . . . . . . . . . . . . . . . . . . . . . . . . . . Hover 25494 | . . . . . . . . . . . 2353 1199 1448 149 1560 1021 705 184 594 1425 356 2425 918 877 4019 1144 1655 362 3100 Flight 18470 | . 899 3402 938 2655 5052 356 2170 1086 828 855 229 . . . . . . . . . . . . . . . . . . Fastest Speed 20 | 50 37 37 35 35 28 31 25 25 25 25 22 22 22 22 22 22 22 20 20 20 20 20 20 20 20 20 20 20 20 Average Speed 27 | 114 48 43 35 35 30 31 25 25 25 25 22 22 22 22 22 30 22 20 20 20 20 20 20 20 20 20 20 20 20 Slowest Speed 130 | 120 130 44 44 35 42 31 31 25 25 25 60 22 22 22 44 44 22 22 20 20 20 20 20 20 36 20 96 20 22 Overloaded Moves . | . . . . . . . . . . . . . . . . . . . . . . . . . . . . . . Propulsion Burnouts . | . . . . . . . . . . . . . . . . . . . . . . . . . . . . . . Robots Hopped 171 | . 16 7 6 7 93 . 38 2 . 2 . . . . . . . . . . . . . . . . . . . Potential Cave-ins 5 | . . . . . . . . . . . . . . . . . . . . 2 . 1 . . 2 . . . . Cave-ins Triggered . | . . . . . . . . . . . . . . . . . . . . . . . . . . . . . . Exploration Rate (%) 74 | 10 72 78 98 93 85 96 48 99 88 89 91 99 40 85 34 97 84 60 82 28 100 54 94 96 97 98 25 50 75 Regions Visited 29 Branch Regions 18 Pre-discovered Areas 12 | . . 1 2 1 1 . . . . . . . . . . . . 3 1 . . . 1 1 1 . . . . Known Exits Taken 6 | . . . . . . . 1 . . . . 1 . . 1 1 . . . . . 1 . . . . 1 . . Unknown Exits Taken 17 | 1 1 1 1 1 . . . 1 1 1 1 . . . . . 1 1 1 . . . 1 1 1 1 . 1 . Scrap Searched 43 | . . 12 . 4 . . . . 3 2 . 4 . . . 3 4 . 3 . . . 3 4 . 1 . . . Spaces Dug 320 | . . 1 . 5 44 . 43 . . 2 27 . 25 . 22 5 3 . . 28 . 60 5 4 2 1 21 8 14 Terrain Destroyed 2875 | . . 26 7 3 203 5 125 22 7 2 44 44 153 3 341 21 78 2 76 218 22 440 55 76 474 99 154 17 158 Melee . | . . . . . . . . . . . . . . . . . . . . . . . . . . . . . . Projectile 1792 | . . 26 7 . 37 5 52 22 7 . 17 44 58 3 170 16 76 2 76 97 22 234 55 72 308 99 133 9 145 AOE 781 | . . . . . 128 . 30 . . . . . 70 . 149 . . . . 93 . 147 . . 164 . . . . Terrain Rammed . | . . . . . . . . . . . . . . . . . . . . . . . . . . . . . . Walls Destroyed . | . . . . . . . . . . . . . . . . . . . . . . . . . . . . . . Machines Disabled . | . . . . . . . . . . . . . . . . . . . . . . . . . . . . . . Actions | -11 -10 -10 -9 -9 -6 -6 -6 -6 -6 -6 -6 -5 -5 -5 -5 -5 -5 -5 -4 -4 -4 -4 -4 -4 -4 -3 -3 -3 -3 --------- Run | Yrd Mat Sub Rec Scr Fac Was Fac Low Low Zio Dee Pro Fac Was Fac Upp Upp Zhi Pro Fac Was Fac Upp Upp War Pro Res Qua Frg Total 55312 | 404 1179 3553 967 3069 6263 451 2855 1146 864 855 2939 1590 1873 154 2283 1175 878 276 789 1758 419 3238 1089 1157 5482 1381 2617 404 4204 Wait 6200 | 13 44 24 3 367 887 67 397 16 16 1 221 289 305 . 339 136 111 56 123 133 . 378 105 163 559 147 807 11 482 Move 44132 | 374 1004 3387 925 2643 4879 355 2103 1081 827 850 2581 1198 1447 148 1559 1020 704 183 593 1425 355 2423 917 876 4018 1143 1654 361 3099 Hop 144 | . 15 7 6 4 80 . 28 2 . 2 . . . . . . . . . . . . . . . . . . . Pick Up 93 | . 2 4 1 1 13 . 8 . 1 1 5 1 3 . 8 . . 2 1 5 1 6 . 1 18 . 2 1 8 Fast Attach 80 | 7 3 4 2 6 3 . 6 . . . 7 1 . . 2 . . 1 . 1 . 1 1 . 16 . . 4 15 Attach 19 | . . 1 . . 3 . 3 . . . . 1 . . 1 . . . . 1 . 2 . . 5 1 . 1 . Detach 8 | . . . . 1 1 . 2 . . . . . . . . . . . . . . . . . 4 . . . . Swap 215 | . 10 8 4 3 25 5 12 5 1 1 30 2 7 1 10 1 2 11 5 18 . 3 . 2 20 . 9 2 18 Drop 164 | . 7 10 2 11 17 . 8 2 . . 18 1 2 . 7 . . 6 1 5 1 4 . 1 35 . 2 4 20 Fire 2662 | 6 77 82 18 5 218 16 184 16 11 . 48 50 69 5 226 10 36 17 47 113 58 272 39 38 534 65 105 20 277 Melee 2 | . . . . . . . . . . . . . . . . . . . . 2 . . . . . . . . . Ram 2 | . . . . . . . . . . . . . . . . . . . . . . . . . . . 2 . . Kick 5 | 4 1 . . . . . . . . . . . . . . . . . . . . . . . . . . . . Crush . | . . . . . . . . . . . . . . . . . . . . . . . . . . . . . . Escape Stasis 109 | . . . . . 30 . 18 . . . . . 1 . 3 . . . . . . 8 . . . . 5 . 44 Rewire 162 | . . . . . 14 . . . . . . 1 1 . . . 12 . . 2 . . 13 59 56 4 . . . Trap . | . . . . . . . . . . . . . . . . . . . . . . . . . . . . . . Miscellaneous 1315 | . 16 26 6 28 93 8 86 24 8 . 29 46 38 . 128 8 13 . 19 53 4 141 14 17 217 21 31 . 241 Route ------- -11/Scrapyard -10/Materials (discovered 4 exits: [*Mat x2] / [*Min] / *Sub) -10/Subcaves (discovered 2 exits: [*Mat] / *Rec) -9/Recycling (discovered 2 exits: [*Fac] / *Scr) -9/Scraptown (discovered 2 exits: *Fac x2) -6/Factory (discovered 6 exits: *Fac x4 / *Low x2) -6/Waste -6/Factory (discovered 3 exits: *Fac x2 / *Low) -6/Lower Caves -6/Lower Caves (discovered 2 exits: *Fac / [*Zio]) -6/Zion (discovered 2 exits: [*Dee] / [*Pro]) -6/Deep Caves -5/Proximity Caves -5/Factory (discovered 3 exits: *Fac / Upp x2) -5/Waste -5/Factory (discovered 5 exits: *Fac x3 / *Upp x2) -5/Upper Caves -5/Upper Caves (discovered 2 exits: *Fac / *Zhi) -5/Zhirov -4/Proximity Caves -4/Factory -4/Waste -4/Factory (discovered 9 exits: *Res x4 / *Upp x2 / Ext x2 / *Arm) -4/Upper Caves -4/Upper Caves (discovered 2 exits: *Res / *War) -4/Warlord -3/Proximity Caves -3/Research (discovered 3 exits: [*Res] / *Qua x2) -3/Quarantine (discovered 3 exits: [*Res] / [*Sec] / *Frg) -3/Protoforge (discovered 1 exit: [*Res]) History --------- Turn | Location | Event 2 | -11/Scrapyard | Met Revision 17 28 | -11/Scrapyard | Upgraded with Propulsion slot (x1) 80 | -11/Scrapyard | Upgraded with Weapon slot (x1) 100 | -11/Scrapyard | Upgraded with Utility slot (x1) 120 | -11/Scrapyard | Discovered new exit (range 8) 473 | -11/Scrapyard | Entered Materials 474 | -10/Materials | Build established: Mutant 561 | -10/Materials | Upgraded with Utility slot (x1) 669 | -10/Materials | Discovered new exit (range 16) 809 | -10/Materials | Discovered new exit (range 3) 867 | -10/Materials | Repaired Flight Unit? 897 | -10/Materials | Discovered new exit (range 16) 1073 | -10/Materials | Derelicts attacked the area 1141 | -10/Materials | Core integrity fell below 50% 1182 | -10/Materials | Discovered new exit (range 15) 1207 | -10/Materials | Build established: Scavenger-Mutant 1244 | -10/Materials | Reached level 2 1276 | -10/Materials | Upgraded with Utility slot (x1) 1287 | -10/Materials | Entered Subcaves 1288 | -10/Subcaves | Approached by a straggling Scientist 1301 | -10/Subcaves | Shifting Twisted Machinery released Flamer 1303 | -10/Subcaves | Shifting Twisted Machinery released Mak. Flight Unit 1329 | -10/Subcaves | Discovered new exit (range 16) 1437 | -10/Subcaves | Reached level 3 1547 | -10/Subcaves | Upgraded with Weapon slot (x1) 1630 | -10/Subcaves | Learned location of Zion (-6) 1828 | -10/Subcaves | Visited 4L-MR0's lab 1841 | -10/Subcaves | Build established: Scavenger-Gunner 1980 | -10/Subcaves | Shifting Twisted Machinery released Mak. Leg 2427 | -10/Subcaves | A Subdweller sparked back to life 2557 | -10/Subcaves | Build established: Derelict-Gunner 2793 | -10/Subcaves | Shifting Twisted Machinery released Battle Cannon 2806 | -10/Subcaves | Shifting Twisted Machinery released Mak. Thermal Plating 2820 | -10/Subcaves | Shifting Twisted Machinery released Sub. Machine Gun 2823 | -10/Subcaves | A swath of the cavern ceiling suddenly collapsed 3054 | -10/Subcaves | Discovered new exit (range 15) 3090 | -10/Subcaves | Core integrity fell below 20% 3117 | -10/Subcaves | Entered Recycling 3119 | -9/Recycling | Reached level 4 3192 | -9/Recycling | Upgraded with Propulsion slot (x1) 3294 | -9/Recycling | Discovered new exit (range 15) 3450 | -9/Recycling | Scanned before Scraplab entrance 3517 | -9/Recycling | Entered Scraplab 3524 | -9/Recycling | Discovered new exit (range 3) 3530 | -9/Recycling | Entered Scraptown 3532 | -9/Scraptown | Reached level 5 3658 | -9/Scraptown | Discovered new exit (range 5) 3717 | -9/Scraptown | Visited Assassins FH 3736 | -9/Scraptown | Visited Awakened 3749 | -9/Scraptown | Visited Red Mages 3878 | -9/Scraptown | Visited The Evicted 3890 | -9/Scraptown | Visited TADAMA 3945 | -9/Scraptown | Visited UFD Registry 3945 | -9/Scraptown | Registered with UFD as "Wrenchchassis" 3959 | -9/Scraptown | Visited Abandonware Association 3966 | -9/Scraptown | Learned abandonware demo "REPAIR.EXE" 3966 | -9/Scraptown | Learned abandonware demo "ERRANTS.EXE" 3978 | -9/Scraptown | Visited Analyses Database 3991 | -9/Scraptown | Visited Chapter 10 4482 | -9/Scraptown | Visited Scrapoid Research Area 4495 | -9/Scraptown | Visited Research Penetration Think Tank 4503 | -9/Scraptown | Visited A0-MCA Data Center 4506 | -9/Scraptown | Given an A+ rating by A0-MCA 4508 | -9/Scraptown | Upgraded with Utility slot (x1) 4509 | -9/Scraptown | Found A0-MCA's Component Scanner 4519 | -9/Scraptown | Visited LU-1G1's Boring Crew 4557 | -9/Scraptown | Visited Supply Room 4569 | -9/Scraptown | Visited Derelict Rescue Squad 4584 | -9/Scraptown | Visited Scrap Suit Storage 4630 | -9/Scraptown | Visited CPS Storage 4638 | -9/Scraptown | Visited Spacefarers 4765 | -9/Scraptown | Met Optimus 4765 | -9/Scraptown | Accepted into 0bPrime 4791 | -9/Scraptown | Civil war broke out across Scraptown 4796 | -9/Scraptown | Found Scrap Suit 4863 | -9/Scraptown | Lost 3 allies 4879 | -9/Scraptown | Found Prototype Special Weapon 4879 | -9/Scraptown | Identified LU-1G1's Laser Shovel 4884 | -9/Scraptown | Discovered new exit (range 6) 4887 | -9/Scraptown | Entered Factory 4889 | -6/Factory | Reached level 6 4911 | -6/Factory | Lost 4 allies 5310 | -6/Factory | Build established: Scrapper 5496 | -6/Factory | Loaded intel: 8 recycling unit locations 5678 | -6/Factory | Discovered new exit (range 6) 5691 | -6/Factory | Discovered new exit (range 16) 5723 | -6/Factory | Reached level 7 5731 | -6/Factory | Upgraded with Propulsion slot (x1) 5766 | -6/Factory | Discovered new exit (range 15) 5814 | -6/Factory | Learned location of Protoforge (-3) 6019 | -6/Factory | Reached level 8 6407 | -6/Factory | Discovered new exit (range 15) 6504 | -6/Factory | Core integrity fell below 50% 6555 | -6/Factory | Scrapoids reinforcements arrived? 6590 | -6/Factory | Lost 3 allies 6631 | -6/Factory | Discovered new exit (range 5) 6714 | -6/Factory | Reached level 9 6741 | -6/Factory | Upgraded with Utility slot (x1) 6895 | -6/Factory | Build established: Scavenger-Scrapper 7029 | -6/Factory | Reached level 10 7097 | -6/Factory | Destroyed 11 combat bots 7143 | -6/Factory | Discovered new exit (range 9) 7254 | -6/Factory | Spotted B-75 Beast 7337 | -6/Factory | First assault squad dispatched 7419 | -6/Factory | Identified exit to Factory 7525 | -6/Factory | Reached level 11 7566 | -6/Factory | Upgraded with Utility slot (x1) 7740 | -6/Factory | Repaired Broken Helical Railgun 7813 | -6/Factory | Upgraded with Power slot (x1) 7823 | -6/Factory | Reached level 12 7869 | -6/Factory | Build established: Sprinter 7893 | -6/Factory | High security lockdown imminent 7928 | -6/Factory | Manually triggered Chute Trap 7928 | -6/Factory | Sucked down chute 7928 | -6/Factory | Entered Waste 7931 | -6/Waste | Spotted C-40 Crusher 7933 | -6/Waste | Spotted C-40 Crusher 7938 | -6/Waste | Warlord forces began an assault 7946 | -6/Waste | Allies destroyed C-40 Crusher 7947 | -6/Waste | Spotted C-40 Crusher 7951 | -6/Waste | Destroyed C-40 Crusher 7955 | -6/Waste | Allies destroyed C-40 Crusher 7969 | -6/Waste | Spotted C-40 Crusher 7973 | -6/Waste | Allies destroyed C-40 Crusher 7977 | -6/Waste | Spotted C-40 Crusher 7981 | -6/Waste | Allies destroyed C-40 Crusher 7986 | -6/Waste | Spotted C-40 Crusher 7991 | -6/Waste | Allies destroyed C-40 Crusher 7996 | -6/Waste | Discovered new exit (range 16) 8017 | -6/Waste | Found Prototype Device 8017 | -6/Waste | Identified Exp. Shield Generator 8150 | -6/Waste | Entered Factory 8150 | -6/Factory | Accompanied by 18 allies 8382 | -6/Factory | Reached level 13 8424 | -6/Factory | Reached level 14 8453 | -6/Factory | Upgraded with Utility slot (x1) 8472 | -6/Factory | Reached level 15 8487 | -6/Factory | Reached level 16 8493 | -6/Factory | Upgraded with Propulsion slot (x1) 8496 | -6/Factory | Lost 5 allies 8500 | -6/Factory | First assault squad dispatched 8510 | -6/Factory | Destroyed 8 combat bots 8520 | -6/Factory | Reached level 17 8578 | -6/Factory | Reached level 18 8581 | -6/Factory | Discovered exit to Factory (range 15) 8583 | -6/Factory | Discovered exit to Factory (range 15) 8607 | -6/Factory | Destroyed 8 combat bots 8618 | -6/Factory | Upgraded with Utility slot (x1) 8634 | -6/Factory | Loaded intel: 8 recycling unit locations 8698 | -6/Factory | Build established: Scavenger-Sprinter 8747 | -6/Factory | Reached level 19 8784 | -6/Factory | Upgraded with Weapon slot (x1) 8831 | -6/Factory | Allied Derelicts emerged from ambush trap array 8832 | -6/Factory | Garrison activated, responded to threat 8965 | -6/Factory | Scraphulk reinforcements arrived? 9047 | -6/Factory | Spotted B-75 Beast 9110 | -6/Factory | Allies destroyed B-75 Beast 9127 | -6/Factory | Reached level 20 9129 | -6/Factory | High security lockdown imminent 9134 | -6/Factory | Discovered new exit (range 13) 9181 | -6/Factory | Scraphulk reinforcements arrived? 9209 | -6/Factory | High security lockdown engaged 9237 | -6/Factory | Identified exit to Lower Caves 9573 | -6/Factory | Destroyed 16 combat bots 9599 | -6/Factory | Entered Lower Caves 9601 | -6/Lower Caves | Reached level 21 9670 | -6/Lower Caves | Learned Factory emergency access door positions 9714 | -6/Lower Caves | Learned Factory terminal intel 9756 | -6/Lower Caves | Encountered a Warlord checkpoint 9832 | -6/Lower Caves | Discovered new exit (range 12) 9947 | -6/Lower Caves | Entered another Lower Caves area 9951 | -6/Lower Caves | Discovered exit to Factory (range 10) 9960 | -6/Lower Caves | Attracted the attention of an 0b10 checkpoint 9976 | -6/Lower Caves | Learned Factory emergency access door positions 9997 | -6/Lower Caves | Attacked by a delusional Derelict stockpiling parts 10117 | -6/Lower Caves | Encountered a Warlord checkpoint 10122 | -6/Lower Caves | Discovered new exit (range 6) 10199 | -6/Lower Caves | Entered Zion 10218 | -6/Zion | Discovered new exit (range 16) 10245 | -6/Zion | System corruption cleaned by Quarantine Array 10261 | -6/Zion | Gained Derelict followers 10277 | -6/Zion | Visited the Megawrench Repair Shop 10281 | -6/Zion | Learned Factory non-interactive machine intel 10288 | -6/Zion | Found CR-A16's Pointy Stick 10359 | -6/Zion | Gained Derelict followers 10391 | -6/Zion | Turned away by Imprinter 10395 | -6/Zion | Attempted to imprint without authorization 10395 | -6/Zion | Attacked by Zionites 10416 | -6/Zion | Discovered new exit (range 3) 10416 | -6/Zion | Saw the warning signs outside the Deep Caves entrance 10417 | -6/Zion | Entered Deep Caves 10419 | -6/Deep Caves | Met 5H-AD0 10436 | -6/Deep Caves | Found Unknown Device 10436 | -6/Deep Caves | Identified Surveybot 24 Scanner 10531 | -6/Deep Caves | Attacked by Z-Imprinter 10540 | -6/Deep Caves | Destroyed Z-Imprinter 10592 | -6/Deep Caves | Found Prototype Device 10592 | -6/Deep Caves | Identified Zio. Metafield Generator 10614 | -6/Deep Caves | Z-Facility disabled 10771 | -6/Deep Caves | Discovered new exit (range 11) 10877 | -6/Deep Caves | Spotted AG-27019 10922 | -6/Deep Caves | Spotted AG-56064 10959 | -6/Deep Caves | Thanked by 5H-AD0 10993 | -6/Deep Caves | Found Surveybot 24 Chip 11017 | -6/Deep Caves | Found Prototype Protection 11017 | -6/Deep Caves | Identified Zio. Weapon Casing 11021 | -6/Deep Caves | Found Prototype Protection 11021 | -6/Deep Caves | Identified Zio. Heavy Carapace 11380 | -6/Deep Caves | Entered Proximity Caves 11403 | -5/Proximity Caves | Reached level 22 11452 | -5/Proximity Caves | Learned Factory emergency access door positions 11456 | -5/Proximity Caves | Destroyed 10 combat bots 11528 | -5/Proximity Caves | Acquired the password to a Derelict Tinkerer's latest research 11813 | -5/Proximity Caves | Caught by Unaware searching for contraband prototypes 11839 | -5/Proximity Caves | Caught by Unaware searching for contraband prototypes 11908 | -5/Proximity Caves | Spotted B-75 Beast 11946 | -5/Proximity Caves | Destroyed B-75 Beast 12000 | -5/Proximity Caves | Discovered exit to Factory (range 9) 12074 | -5/Proximity Caves | Entered Factory 12076 | -5/Factory | Loaded intel: 212 non-interactive machine locations 12077 | -5/Factory | Loaded intel: 26 terminal locations 12275 | -5/Factory | Loaded intel: 8 recycling unit locations 12448 | -5/Factory | Discovered new exit (range 4) 12495 | -5/Factory | Reached level 23 12586 | -5/Factory | Scrapoids reinforcements arrived? 12674 | -5/Factory | First assault squad dispatched 12745 | -5/Factory | Scraphulk reinforcements arrived? 12766 | -5/Factory | Identified exit to Upper Caves 12867 | -5/Factory | Reached level 24 12883 | -5/Factory | Sucked down chute 12883 | -5/Factory | Entered Waste 12885 | -5/Waste | Spotted C-40 Crusher 12888 | -5/Waste | 1 allies followed down the chute 12896 | -5/Waste | Destroyed 7 combat bots 12898 | -5/Waste | EMP discharged 12898 | -5/Waste | System corruption reached 10% 12910 | -5/Waste | Spotted C-40 Crusher 12910 | -5/Waste | Spotted C-40 Crusher 12913 | -5/Waste | Spotted C-40 Crusher 12914 | -5/Waste | Spotted C-40 Crusher 12920 | -5/Waste | Spotted C-40 Crusher 12923 | -5/Waste | Discovered new exit (range 13) 12927 | -5/Waste | Entered Factory 12932 | -5/Factory | Loaded intel: 8 recycling unit locations 12969 | -5/Factory | Scrapoid reinforcements arrived 13025 | -5/Factory | Discovered new exit (range 23) 13105 | -5/Factory | Discovered exit to Upper Caves (range 15) 13162 | -5/Factory | Scrapoids reinforcements arrived? 13181 | -5/Factory | Discovered new exit (range 16) 13191 | -5/Factory | Allied Derelicts emerged from ambush trap array 13215 | -5/Factory | Discovered new exit (range 20) 13227 | -5/Factory | First assault squad dispatched 13233 | -5/Factory | Core integrity fell below 50% 13266 | -5/Factory | Destroyed 8 combat bots 13282 | -5/Factory | Lost 10 allies 13317 | -5/Factory | Noticed UFD Elites at a Recycling Unit 13332 | -5/Factory | Scraphulk reinforcements arrived? 13340 | -5/Factory | High security lockdown imminent 13345 | -5/Factory | Discovered exit to Upper Caves (range 17) 13388 | -5/Factory | Lost 3 allies 13408 | -5/Factory | Destroyed 13 combat bots 13420 | -5/Factory | High security lockdown engaged 13444 | -5/Factory | Reached level 25 13625 | -5/Factory | Destroyed 16 combat bots 13710 | -5/Factory | Destroyed 14 combat bots 13815 | -5/Factory | Destroyed 9 combat bots 13871 | -5/Factory | Destroyed 13 combat bots 14049 | -5/Factory | Sterilization system engaged 14049 | -5/Factory | Non-combat units ordered to evacuate 14096 | -5/Factory | Destroyed 23 combat bots 14134 | -5/Factory | Entered Upper Caves 14134 | -5/Upper Caves | Accompanied by 1 ally 14181 | -5/Upper Caves | Encountered a Warlord checkpoint 14235 | -5/Upper Caves | Identified exit to Upper Caves 14319 | -5/Upper Caves | Ambushed by research squad 14352 | -5/Upper Caves | Spotted B-75 Beast 14355 | -5/Upper Caves | Destroyed B-75 Beast 14610 | -5/Upper Caves | Entered another Upper Caves area 14610 | -5/Upper Caves | Accompanied by 1 ally 14615 | -5/Upper Caves | Discovered new exit (range 9) 14628 | -5/Upper Caves | Build established: Scavenger-Scout 14655 | -5/Upper Caves | Reached level 26 14821 | -5/Upper Caves | Attracted the attention of an 0b10 checkpoint 14855 | -5/Upper Caves | Discovered new exit (range 19) 14866 | -5/Upper Caves | Attracted the attention of an 0b10 outpost 14896 | -5/Upper Caves | Destroyed 12 combat bots 14954 | -5/Upper Caves | Entered Zhirov 14954 | -5/Zhirov | Accompanied by 4 allies 14954 | -5/Zhirov | Discovered new exit (range 3) 14969 | -5/Zhirov | Found Alien Artifact 14969 | -5/Zhirov | Identified Integrated Dissipator 14969 | -5/Zhirov | Installed Integrated Dissipator, increased core heat dissipation (+20) 15030 | -5/Zhirov | Learned location of Quarantine (-3) 15030 | -5/Zhirov | Learned location of Command (-1) 15030 | -5/Zhirov | Learned location of Testing (-2) 15088 | -5/Zhirov | Entered Proximity Caves 15088 | -4/Proximity Caves | Accompanied by 4 allies 15109 | -4/Proximity Caves | Learned location of Armory (-4) 15157 | -4/Proximity Caves | Learned Research emergency access door positions 15189 | -4/Proximity Caves | Learned Research trap positions 15207 | -4/Proximity Caves | Attracted the attention of an 0b10 checkpoint 15229 | -4/Proximity Caves | Spotted B-86 Titan 15234 | -4/Proximity Caves | Destroyed B-86 Titan 15268 | -4/Proximity Caves | Discovered new exit (range 20) 15278 | -4/Proximity Caves | Destroyed 8 combat bots 15422 | -4/Proximity Caves | Entered Factory 15422 | -4/Factory | Accompanied by 4 allies 15441 | -4/Factory | Reached level 27 15485 | -4/Factory | Upgraded with Utility slot (x1) 15521 | -4/Factory | Scrapoids reinforcements arrived? 15556 | -4/Factory | Core integrity fell below 50% 15582 | -4/Factory | Destroyed 10 combat bots 15594 | -4/Factory | Loaded intel: 7 recycling unit locations 15601 | -4/Factory | Discovered new exit (range 22) 15613 | -4/Factory | Garrison activated, responded to threat 15630 | -4/Factory | Unchained authorized (6S-H0T) 15672 | -4/Factory | First assault squad dispatched 15684 | -4/Factory | Destroyed 15 combat bots 15712 | -4/Factory | Scrapoid reinforcements arrived 15754 | -4/Factory | Garrison activated, responded to threat 15830 | -4/Factory | Allies destroyed 6S-H0T 15834 | -4/Factory | Found Prototype Ballistic Gun 15834 | -4/Factory | Identified 6S-H0T's Six Shooter 15859 | -4/Factory | Lost 3 allies 15871 | -4/Factory | Garrison activated, responded to threat 15883 | -4/Factory | Reached level 28 15899 | -4/Factory | Found Prototype Device 15899 | -4/Factory | Identified Zeronet Interface 15902 | -4/Factory | Found Prototype Processor 15902 | -4/Factory | Identified Exp. Targeting Computer 15908 | -4/Factory | Destroyed 7 combat bots 16055 | -4/Factory | Cargo convoy interrupted 16055 | -4/Factory | Spotted Striker 16056 | -4/Factory | High security lockdown imminent 16076 | -4/Factory | Manually triggered Chute Trap 16076 | -4/Factory | Sucked down chute 16076 | -4/Factory | Entered Waste 16082 | -4/Waste | Spotted C-40 Crusher 16089 | -4/Waste | Spotted C-40 Crusher 16089 | -4/Waste | Spotted C-40 Crusher 16090 | -4/Waste | Spotted C-40 Crusher 16093 | -4/Waste | Spotted C-40 Crusher 16130 | -4/Waste | Destroyed C-40 Crusher 16143 | -4/Waste | Destroyed C-40 Crusher 16149 | -4/Waste | Spotted C-40 Crusher 16164 | -4/Waste | Destroyed C-40 Crusher 16190 | -4/Waste | Destroyed C-40 Crusher 16217 | -4/Waste | Destroyed C-40 Crusher 16227 | -4/Waste | Discovered new exit (range 13) 16243 | -4/Waste | Entered Factory 16262 | -4/Factory | Discovered new exit (range 7) 16453 | -4/Factory | Identified exit to Upper Caves 16453 | -4/Factory | Identified exit to Extension 16453 | -4/Factory | Identified exit to Armory 16457 | -4/Factory | Scrapoids reinforcements arrived? 16494 | -4/Factory | Discovered new exit (range 5) 16566 | -4/Factory | P-70 Sage assimilated allied 04F37-D 16647 | -4/Factory | Spotted B-86 Titan 16663 | -4/Factory | Allies destroyed B-86 Titan 16743 | -4/Factory | First assault squad dispatched 16899 | -4/Factory | Garrison activated, responded to threat 16910 | -4/Factory | Noticed UFD Elites at a Recycling Unit 16926 | -4/Factory | Destroyed 10 combat bots 16937 | -4/Factory | Scraphulk reinforcements arrived? 16968 | -4/Factory | Discovered new exit (range 22) 16979 | -4/Factory | Discovered new exit (range 21) 16984 | -4/Factory | Scrapoids reinforcements arrived? 17045 | -4/Factory | Lost 5 allies 17062 | -4/Factory | Destroyed 16 combat bots 17070 | -4/Factory | High security lockdown imminent 17093 | -4/Factory | Reached level 29 17111 | -4/Factory | Loaded intel: 5 recycling unit locations 17112 | -4/Factory | Scrapoids reinforcements arrived? 17112 | -4/Factory | Discovered new exit (range 8) 17114 | -4/Factory | Destroyed 8 combat bots 17150 | -4/Factory | High security lockdown engaged 17166 | -4/Factory | Attached CPS modules to *Dermott. 17337 | -4/Factory | Destroyed 26 combat bots 17359 | -4/Factory | System corruption reached 10% 17463 | -4/Factory | Sterilization system engaged 17463 | -4/Factory | Non-combat units ordered to evacuate 17509 | -4/Factory | Destroyed 28 combat bots 17563 | -4/Factory | Combat units ordered to evacuate 17640 | -4/Factory | Destroyed 25 combat bots 17650 | -4/Factory | Entered Upper Caves 17701 | -4/Upper Caves | Attracted the attention of an 0b10 outpost 17751 | -4/Upper Caves | Destroyed 9 combat bots 17792 | -4/Upper Caves | Discovered new exit (range 20) 17826 | -4/Upper Caves | Encountered a Warlord checkpoint 17840 | -4/Upper Caves | Destroyed 9 combat bots 18022 | -4/Upper Caves | Entered another Upper Caves area 18022 | -4/Upper Caves | Accompanied by 2 allies 18024 | -4/Upper Caves | Discovered new exit (range 17) 18049 | -4/Upper Caves | Learned Research garrison access intel 18059 | -4/Upper Caves | Encountered a Warlord checkpoint 18080 | -4/Upper Caves | Attracted the attention of an 0b10 checkpoint 18151 | -4/Upper Caves | Attracted the attention of an 0b10 outpost 18172 | -4/Upper Caves | Discovered new exit (range 9) 18197 | -4/Upper Caves | Destroyed 13 combat bots 18243 | -4/Upper Caves | Attacked by a delusional Derelict stockpiling Unaware 18493 | -4/Upper Caves | Entered Warlord 18493 | -4/Warlord | Accompanied by 7 allies 18500 | -4/Warlord | System corruption cleaned by Quarantine Array 18555 | -4/Warlord | Learned Armory security intel 18555 | -4/Warlord | Learned Research garrison access intel 18555 | -4/Warlord | Learned Testing security intel 18555 | -4/Warlord | Learned Armory scanalyzer intel 18555 | -4/Warlord | Learned 4 Research zone layouts 18555 | -4/Warlord | Learned 4 Research zone layouts 18555 | -4/Warlord | Learned 4 Quarantine zone layouts 18555 | -4/Warlord | Learned Armory stockpile data 18634 | -4/Warlord | Warlord's base attacked by MAIN.C 18755 | -4/Warlord | Found Prototype Device 18755 | -4/Warlord | Identified Exp. Phase Shifter 18759 | -4/Warlord | Found Prototype Device 18759 | -4/Warlord | Identified System Purifier 18795 | -4/Warlord | Reached level 30 18818 | -4/Warlord | Upgraded with Utility slot (x1) 18845 | -4/Warlord | Destroyed 15 combat bots 18855 | -4/Warlord | Warlord forces counterattacked 18921 | -4/Warlord | Destroyed 14 combat bots 18934 | -4/Warlord | Spotted Striker 18934 | -4/Warlord | Spotted Striker 18934 | -4/Warlord | Spotted Striker 18951 | -4/Warlord | Destroyed Striker 18979 | -4/Warlord | Destroyed 9 combat bots 18990 | -4/Warlord | Lost 8 allies 19009 | -4/Warlord | Found Prototype Device 19009 | -4/Warlord | Identified Wardrone Bay 19057 | -4/Warlord | Spotted Striker 19061 | -4/Warlord | Allies destroyed Striker 19064 | -4/Warlord | Allies destroyed Striker 19069 | -4/Warlord | Allies destroyed Striker 19155 | -4/Warlord | Rebuked by Warlord 19272 | -4/Warlord | Found Prototype Launcher 19288 | -4/Warlord | Identified Vortex Catalyst Activator 19289 | -4/Warlord | Spotted Executioner 19290 | -4/Warlord | Spotted Striker 19291 | -4/Warlord | Destroyed Executioner 19292 | -4/Warlord | Destroyed Striker 19300 | -4/Warlord | Spotted Striker 19300 | -4/Warlord | Spotted Striker 19300 | -4/Warlord | Destroyed Striker 19300 | -4/Warlord | Destroyed Striker 19309 | -4/Warlord | Warlord base infiltrated, sounded retreat 19313 | -4/Warlord | Found Prototype Ballistic Cannon 19313 | -4/Warlord | Identified Hvy. Autocannon 19320 | -4/Warlord | Spotted Executioner 19324 | -4/Warlord | Destroyed Executioner 19326 | -4/Warlord | Spotted Striker 19345 | -4/Warlord | Destroyed 23 combat bots 19362 | -4/Warlord | Spotted B-90 Cyclops 19367 | -4/Warlord | Destroyed B-90 Cyclops 19370 | -4/Warlord | Spotted Executioner 19372 | -4/Warlord | Destroyed Executioner 19389 | -4/Warlord | Found Quantum Capacitor 19400 | -4/Warlord | Attacked by Warlord forces 19428 | -4/Warlord | Build established: Scavenger-Sprinter 19506 | -4/Warlord | Destroyed Warlord 19532 | -4/Warlord | Spotted Executioner 19539 | -4/Warlord | Destroyed Executioner 19656 | -4/Warlord | Destroyed 10 combat bots 19669 | -4/Warlord | Spotted Striker 19680 | -4/Warlord | Destroyed Striker 19701 | -4/Warlord | Spotted Striker 19717 | -4/Warlord | Destroyed 11 combat bots 19720 | -4/Warlord | Destroyed Striker 19761 | -4/Warlord | Spotted B-86 Titan 19771 | -4/Warlord | Destroyed B-86 Titan 19804 | -4/Warlord | Spotted Executioner 19804 | -4/Warlord | Spotted Striker 19822 | -4/Warlord | Destroyed 10 combat bots 19831 | -4/Warlord | Destroyed Striker 19844 | -4/Warlord | Destroyed Executioner 19846 | -4/Warlord | Found Prototype Device 19846 | -4/Warlord | Identified Adv. Kinecellerator 20007 | -4/Warlord | Destroyed 29 combat bots 20057 | -4/Warlord | Destroyed 9 combat bots 20087 | -4/Warlord | Spotted Executioner 20103 | -4/Warlord | Destroyed Executioner 20129 | -4/Warlord | Destroyed 10 combat bots 20228 | -4/Warlord | Spotted Striker 20245 | -4/Warlord | Destroyed Striker 20253 | -4/Warlord | Spotted Striker 20273 | -4/Warlord | Spotted Executioner 20280 | -4/Warlord | Destroyed Executioner 20301 | -4/Warlord | Destroyed 9 combat bots 20314 | -4/Warlord | Destroyed Striker 20339 | -4/Warlord | Spotted Striker 20351 | -4/Warlord | Destroyed Striker 20453 | -4/Warlord | Spotted Executioner 20461 | -4/Warlord | Destroyed Executioner 20463 | -4/Warlord | Spotted Executioner 20471 | -4/Warlord | Destroyed Executioner 20489 | -4/Warlord | Found Prototype Processor 20489 | -4/Warlord | Identified Exp. Core Analyzer 20539 | -4/Warlord | Destroyed Fake God Mode 20580 | -4/Warlord | Destroyed 48 combat bots 20608 | -4/Warlord | Spotted Striker 20612 | -4/Warlord | Destroyed Striker 20623 | -4/Warlord | Discovered new exit (range 14) 20634 | -4/Warlord | Destroyed 10 combat bots 20708 | -4/Warlord | Found Prototype Reactor 20708 | -4/Warlord | Identified Vortex Chain Reactor 20762 | -4/Warlord | Found Exp. Core Analyzer 20778 | -4/Warlord | Found Prototype Device 20778 | -4/Warlord | Identified Exp. Thermal Shield 20831 | -4/Warlord | Found Prototype Hackware 20855 | -4/Warlord | Entered Proximity Caves 20895 | -3/Proximity Caves | Attracted the attention of an 0b10 outpost 20900 | -3/Proximity Caves | Reached level 31 20931 | -3/Proximity Caves | Destroyed 9 combat bots 20995 | -3/Proximity Caves | Destroyed 7 combat bots 21009 | -3/Proximity Caves | Attracted the attention of an 0b10 checkpoint 21035 | -3/Proximity Caves | Upgraded with Power slot (x1) 21083 | -3/Proximity Caves | Discovered new exit (range 5) 21160 | -3/Proximity Caves | Spotted B-86 Titan 21166 | -3/Proximity Caves | Destroyed B-86 Titan 21337 | -3/Proximity Caves | Entered Research 21337 | -3/Research | Accompanied by 2 allies 21339 | -3/Research | Loaded intel: 106 trap records 21341 | -3/Research | Loaded intel: 4 garrison access locations 21342 | -3/Research | Identified Ghost Barrier 21371 | -3/Research | Scrapoid reinforcements arrived 21545 | -3/Research | Unchained authorized (CL-0N3) 21571 | -3/Research | Garrison activated, responded to threat 21587 | -3/Research | First assault squad dispatched 21714 | -3/Research | Build established: Scavenger-Scout 21950 | -3/Research | T-07 Excavator reconstituted as Quarantine Guard 21950 | -3/Research | Spotted Quarantine Guard 21952 | -3/Research | Destroyed Quarantine Guard 21952 | -3/Research | Quarantine Guard reconstituted as CL-0N3 22005 | -3/Research | Destroyed CL-0N3 22008 | -3/Research | Extracted schematics, analyses from CL-0N3's data core 22022 | -3/Research | Found ID Mask 22042 | -3/Research | Build established: Scavenger-Sprinter 22182 | -3/Research | Discovered new exit (range 18) 22199 | -3/Research | Discovered new exit (range 13) 22205 | -3/Research | Identified exit to Quarantine 22262 | -3/Research | Unchained authorized (DW-4LL) 22552 | -3/Research | Reached level 32 22603 | -3/Research | DW-4LL burst out of a wall 22629 | -3/Research | Cargo convoy interrupted 22632 | -3/Research | High security lockdown imminent 22635 | -3/Research | Destroyed DW-4LL 22637 | -3/Research | Found Prototype Ballistic Gun 22637 | -3/Research | Identified DW-4LL's Megashotty 22662 | -3/Research | Found Prototype Device 22662 | -3/Research | Identified Exp. Weapon Cycler 22664 | -3/Research | Lost 5 allies 22680 | -3/Research | Entered Quarantine 22686 | -3/Quarantine | Found Alien Artifact 22702 | -3/Quarantine | Found Alien Energy Cannon 22702 | -3/Quarantine | Identified Core Cannon 22724 | -3/Quarantine | Discovered new exit (range 20) 22757 | -3/Quarantine | Spotted Fortress 22790 | -3/Quarantine | Core integrity fell below 50% 22806 | -3/Quarantine | Discovered new exit (range 6) 22806 | -3/Quarantine | Discovered new exit (range 7) 22807 | -3/Quarantine | Entered Protoforge 22813 | -3/Protoforge | Spotted Hotshot 22813 | -3/Protoforge | Spotted Hotshot 22832 | -3/Protoforge | Superfortress began startup sequence 22862 | -3/Protoforge | Core integrity fell below 20% 22932 | -3/Protoforge | Spotted Overlord 22939 | -3/Protoforge | Spotted Hotshot 22946 | -3/Protoforge | Destroyed Hotshot 22949 | -3/Protoforge | Spotted Hotshot 22951 | -3/Protoforge | Destroyed Hotshot 22966 | -3/Protoforge | Build established: Scavenger-Scout 22987 | -3/Protoforge | Destroyed Hotshot 22988 | -3/Protoforge | Destroyed Hotshot 23010 | -3/Protoforge | Discovered new exit (range 24) 23057 | -3/Protoforge | First assault squad dispatched 23070 | -3/Protoforge | ID Mask engaged 23092 | -3/Protoforge | ID Mask no longer valid 23114 | -3/Protoforge | Spotted EXE-6 23114 | -3/Protoforge | Spotted EXE-6 23118 | -3/Protoforge | Destroyed EXE-6 23122 | -3/Protoforge | Destroyed EXE-6 23126 | -3/Protoforge | Found Prototype Processor 23126 | -3/Protoforge | Identified Exp. Armor Integrity Analyzer 23135 | -3/Protoforge | UFD initiated attack on Protoforge (Readiness: Minimal) 23135 | -3/Protoforge | Loaded intel: 3 recycling unit locations 23149 | -3/Protoforge | Scrapoid reinforcements arrived 23153 | -3/Protoforge | Scraphulk reinforcements arrived? 23154 | -3/Protoforge | Scraphulk reinforcements arrived 23171 | -3/Protoforge | Optimus greeted in Protoforge 23190 | -3/Protoforge | Spotted Decapitator 23191 | -3/Protoforge | Spotted Decapitator 23192 | -3/Protoforge | Allies destroyed Decapitator 23204 | -3/Protoforge | Spotted EXE-6 23204 | -3/Protoforge | Spotted EXE-6 23243 | -3/Protoforge | Forge Plexus network access discovered 23247 | -3/Protoforge | Spotted AP7-3 23249 | -3/Protoforge | Spotted AP7-3 23270 | -3/Protoforge | Spotted Hotshot 23270 | -3/Protoforge | Allies destroyed AP7-3 23271 | -3/Protoforge | Spotted Decapitator 23273 | -3/Protoforge | Destroyed Hotshot 23279 | -3/Protoforge | Spotted Decapitator 23288 | -3/Protoforge | Spotted Hotshot 23292 | -3/Protoforge | Destroyed Hotshot 23308 | -3/Protoforge | Attached CPS modules to Triborg. 23324 | -3/Protoforge | Found Prototype Processor 23324 | -3/Protoforge | Identified Exp. Target Analyzer 23378 | -3/Protoforge | Lost 25 allies 23379 | -3/Protoforge | Spotted Hotshot 23379 | -3/Protoforge | Spotted Hotshot 23381 | -3/Protoforge | Destroyed Hotshot 23382 | -3/Protoforge | Spotted Hotshot 23385 | -3/Protoforge | Destroyed Hotshot 23387 | -3/Protoforge | Destroyed Hotshot 23445 | -3/Protoforge | Spotted Hotshot 23445 | -3/Protoforge | Spotted Executioner 23450 | -3/Protoforge | Destroyed Executioner 23463 | -3/Protoforge | Destroyed Hotshot 23464 | -3/Protoforge | Spotted Hotshot 23467 | -3/Protoforge | Destroyed Hotshot 23470 | -3/Protoforge | Spotted Hotshot 23472 | -3/Protoforge | Spotted Hotshot 23474 | -3/Protoforge | Destroyed Hotshot 23477 | -3/Protoforge | Destroyed Hotshot 23558 | -3/Protoforge | Found Crosscalibrator 23578 | -3/Protoforge | System corruption reached 10% 23587 | -3/Protoforge | Spotted Hotshot 23587 | -3/Protoforge | Spotted Hotshot 23589 | -3/Protoforge | Destroyed Hotshot 23591 | -3/Protoforge | Destroyed Hotshot 23592 | -3/Protoforge | Spotted Decapitator 23592 | -3/Protoforge | Spotted Decapitator 23592 | -3/Protoforge | Spotted Decapitator 23592 | -3/Protoforge | Spotted Decapitator 23596 | -3/Protoforge | Build established: Scavenger-Sprinter 23598 | -3/Protoforge | Destroyed Decapitator 23599 | -3/Protoforge | Destroyed Decapitator 23615 | -3/Protoforge | Spotted V532-k 23619 | -3/Protoforge | Destroyed V532-k 23622 | -3/Protoforge | Found Cep. Gyrokinetic System 23626 | -3/Protoforge | Found Cep. Gyrokinetic System 23629 | -3/Protoforge | Found Cep. Combat Aerolev Unit 23679 | -3/Protoforge | Spotted Hotshot 23701 | -3/Protoforge | Spotted Hotshot 23900 | -3/Protoforge | Spotted AP7-3 23900 | -3/Protoforge | Spotted AP7-3 23946 | -3/Protoforge | Destroyed AP7-3 23946 | -3/Protoforge | Destroyed AP7-3 23979 | -3/Protoforge | Found Cep. Core Analysis Suite 24070 | -3/Protoforge | Destroyed 10 combat bots 24093 | -3/Protoforge | Spotted Immortal 24094 | -3/Protoforge | Spotted Decapitator 24094 | -3/Protoforge | Spotted Decapitator 24094 | -3/Protoforge | Spotted Decapitator 24094 | -3/Protoforge | Spotted Decapitator 24100 | -3/Protoforge | Destroyed Decapitator 24100 | -3/Protoforge | Destroyed Decapitator 24102 | -3/Protoforge | Destroyed Decapitator 24105 | -3/Protoforge | Destroyed Decapitator 24117 | -3/Protoforge | Destroyed Immortal 24129 | -3/Protoforge | Found Prototype Device 24129 | -3/Protoforge | Identified Exp. Cloaking Device 24194 | -3/Protoforge | Found Cep. Recoil Nullifier 24197 | -3/Protoforge | Found Exp. Kinecellerator 24229 | -3/Protoforge | Spotted Striker 24242 | -3/Protoforge | Destroyed Striker 24247 | -3/Protoforge | Spotted Executioner 24269 | -3/Protoforge | Spotted Executioner 24275 | -3/Protoforge | Destroyed Executioner 24290 | -3/Protoforge | Found Prototype Ballistic Cannon 24290 | -3/Protoforge | Identified Hvy. Siege Cannon 24305 | -3/Protoforge | Destroyed 7 combat bots 24359 | -3/Protoforge | Spotted Executioner 24359 | -3/Protoforge | Spotted Executioner 24366 | -3/Protoforge | Destroyed Executioner 24369 | -3/Protoforge | Found 0bPrime Scrap Suit 24375 | -3/Protoforge | Spotted Executioner 24376 | -3/Protoforge | Spotted AP7-3 24376 | -3/Protoforge | Spotted Executioner 24381 | -3/Protoforge | Destroyed Executioner 24386 | -3/Protoforge | P-80 Master assimilated allied YR-B5A(E) 24387 | -3/Protoforge | Reached level 33 24427 | -3/Protoforge | Lost 10 allies 24429 | -3/Protoforge | Destroyed 17 combat bots 24432 | -3/Protoforge | Found Exp. System Purifier 24434 | -3/Protoforge | Found Exp. System Purifier 24455 | -3/Protoforge | Spotted Striker 24457 | -3/Protoforge | Spotted Striker 24457 | -3/Protoforge | Spotted Executioner 24457 | -3/Protoforge | Spotted Executioner 24471 | -3/Protoforge | Destroyed Striker 24476 | -3/Protoforge | Destroyed Striker 24486 | -3/Protoforge | Destroyed Executioner 24492 | -3/Protoforge | Destroyed Executioner 24538 | -3/Protoforge | Spotted Executioner 24538 | -3/Protoforge | Destroyed Executioner 24562 | -3/Protoforge | Spotted Striker 24565 | -3/Protoforge | Spotted Striker 24566 | -3/Protoforge | Destroyed Striker 24573 | -3/Protoforge | Destroyed Striker 24598 | -3/Protoforge | Destroyed 12 combat bots 24637 | -3/Protoforge | Spotted Executioner 24648 | -3/Protoforge | Spotted Executioner 24660 | -3/Protoforge | Destroyed Executioner 24662 | -3/Protoforge | Destroyed Executioner 24667 | -3/Protoforge | Self-destructed Last Messages --------------- 24661_ N-04 Retriever collects Mak. Coolant Network. 24661_ Slug penetrates Executioner. 24662_ Acquired 10 matter. 24662_ Slug penetrates Executioner. 24662_ Executioner destroyed. 24662_ Slug penetrates Reinforced Barrier. 24663_ Acquired 10 matter. 24663_ N-04 Retriever collects Xenon Bombardment Thruster. 24663_ N-04 Retriever collects Lgt. Antimatter Reactor. 24663_ N-04 Retriever collects Hvy. Machine Gun. 24663_ N-04 Retriever collects Ovr. Coil Gun. 24664_ Acquired Prototype Ballistic Gun. 24664_ Identified Imp. KE Penetrator. 24665_ N-04 Retriever collects Ovr. Medium Treads. 24665_ N-04 Retriever collects Imp. Deuterium Engine. 24665_ N-04 Retriever collects Mak. Coolant Network. 24665_ N-04 Retriever collects EM Pulse Gun. 24666_ Dropped Imp. KE Penetrator. 24666_ Acquired 10 matter. 24666_ N-04 Retriever collects Imp. KE Penetrator. Map ----- +----------------------------------------------------+ | #?## """ ##? ### #?###?# """"" " | | #### """ ### ### #???#?# "" "" " | | #### """ ##+##### ?## ##?##?# "" " "" | | # %!##?? # #?# ##?#### "" " | | " # """" ##??""" ##?######?### "" % " | | ? # """" ##?"""? ############# " | | " ?+ """" ## ?""" ############# % % | | " # """ ##?"""" ############# " | | # """ ##? ??############# " %% | | "" # "" ##################### """ % | | "" # # ##########?### " "" """"" " | | #### """ #""" ############## "" " | | # """ #""" ############## " | | "" + """ #"" #### ## % | | "" # "" ; ####""" ## """ %"" "" | | "" " % " % # ! ####"R " ## " " | | " ;#;+=%;#;## " * " ## %" "%" | | # ^ " %% % # = ;# " | | #### =%%=% % ;* =! ; " " | | #### !%%!%% ; %% ## % " | | #### " " =!%==% % !!= ;[ % %#% %"" "% | | #### ""!*%=%*= =%&!=![!=% *&%==%%%% %" " % | | %""%%[![=!!=![%!!=[===[##/=#!!% &% %&%% | | % /%!!=/!![[%% & %%% ; #n%&% %%%" %% %& | | [! %!!%!%%%%&%=!%n%%n%%%%&%&%&%%=%%%%% % | | "[*% %%=%=%%![%/&%% % @%%%%%%%%%%%*%%%%%%%%%% % | | " %!%==%%![%%%%[%A%!%%%%%%==%&%%%% %%%%%%%& %%%% | | "" =![[!/%%![!/&=!!%*[/!*=%!*=![%%[ %% % % %% | | "" [!!!!=!%**!==!&%[!!*=![[[==[#%[% %%% %%%" " | | "" !=["!&![!!##;!!*!!!=!![*=!=!#[!!!!*! " | | "" !"!%*!# ###[!=[=*!!##*%[*!#===!&=! "% % | | %!%&= # ###[!! == [#### ##![!=!/= | | " "* ##### #### ## " " | | " # ### """ "" ;##### # "" "" | | " # ### """""" ######## " "" | | # ### """""" ######## "" "" | | # ### """ ######## """ " " | | % ############################ ####### | | ##################################### | | = # ################################## | | ######## ###############################?###### | | # ###################################### | | """"" # #############################?######## | | ""T"" # ###################################### | | # # #################################### | | # ####################?################# | | # ###################################### | | # ################?##################### | | """" # #####################???#?############ | | """" # # ############?#?#############? | +----------------------------------------------------+ Best States ------------- Heat Dissipation 178 Energy Generation 97 Energy Capacity 700 Matter Stores 400 Matter Capacity 400 Sight Range 19 Terrain Scan Range 24 Terrain Scan Density 2110 Cloak Strength 4 Additional Mass Support 12 Armor Coverage 400 Resistance: KI 30 Resistance: TH 20 Weapon Shielding 100 Weapon Cycling 30 Phase Shifting 20 Evasion (%) 95 Target Analysis 10 Core Analysis 15 Armor Integrity Analysis 50 Recoil Reduction 99 Kinecelleration 66 Salvage Targeting 4 Offensive Hacking 15 Defensive Hacking 25 Item Schematics ----------------- Imp. Shield Generator | -6/Factory | Extracted Shock Bomb Launcher | -6/Factory | Extracted Greatsword | -6/Factory | Extracted Imp. Hardlight Generator | -6/Factory | Extracted Com. Matter Pod | -6/Factory | Extracted Machine Analyzer | -6/Factory | Extracted Adv. Assault Cannon | -6/Factory | Extracted Hrd. Medium Armor Plating | -6/Factory | Extracted Imp. Melee Analysis Suite | -6/Factory | Extracted Trap Scanner | -6/Factory | Extracted Imp. Medium Armor Plating | -6/Factory | Extracted Imp. Terrain Scan Processor | -6/Factory | Extracted Com. Battery | -6/Factory | Extracted Arm. Leg | -6/Factory | Extracted Field Laser | -6/Factory | Extracted Melee Analysis Suite | -6/Factory | Extracted Energy Well | -6/Factory | Extracted Imp. Titanium Leg | -6/Factory | Extracted Hrd. Light Armor Plating | -6/Factory | Extracted Armor Integrity Analyzer | -5/Factory | Extracted Component Analysis Suite | -5/Factory | Extracted Recalibrator | -5/Factory | Extracted Wave Gun | -5/Factory | Extracted Imp. Hacking Suite | -5/Factory | Extracted Assault Drone Bay | -5/Zhirov | Free Imp. Arc Thrower | -5/Zhirov | Free Exp. Optical Array | -5/Zhirov | Free Exp. Heat Sink | -5/Zhirov | Free Adv. Phase Shifter | -4/Factory | Scanalyzed Hvy. Gatling Laser | -3/Quarantine | Archive Cld. Phase Gun | -3/Quarantine | Archive Imp. Energy Well | -3/Quarantine | Archive Coolant Network | -3/Quarantine | Archive Spectral Analyzer | -3/Quarantine | Archive Centrium Light Armor Plating | -3/Quarantine | Archive Exp. Matter Compressor | -3/Quarantine | Archive Cld. Plasma Rifle | -3/Quarantine | Archive Exp. ECM Suite | -3/Protoforge | Archive Adv. Dynamic Insulation System | -3/Protoforge | Archive Imp. Matter Neutralizer | -3/Protoforge | Archive Adv. Myomer Leg | -3/Protoforge | Archive Lrn. Phase Cannon | -3/Protoforge | Archive Adv. Gravity Neutralizer | -3/Protoforge | Archive Robot Schematics ------------------ K-01 Serf | -3/Research | Archive T-07 Excavator | -3/Research | Archive A-02 Transporter | -3/Research | Archive A-15 Conveyor | -3/Research | Archive R-06 Scavenger | -3/Research | Archive R-10 Processor | -3/Research | Archive M-14 Sweeper | -3/Research | Archive M-22 Extractor | -3/Research | Archive M-30 Cleanser | -3/Research | Archive M-13 Machinist | -3/Research | Archive M-28 Smith | -3/Research | Archive M-36 Artificer | -3/Research | Archive O-16 Technician | -3/Research | Archive O-24 Administrator | -3/Research | Archive O-32 Director | -3/Research | Archive W-16 Scout | -3/Research | Archive W-25 Informer | -3/Research | Archive W-44 Eye | -3/Research | Archive S-10 Pest | -3/Research | Archive S-27 Virus | -3/Research | Archive S-43 Plague | -3/Research | Archive G-34 Mercenary | -3/Research | Archive G-47 Trooper | -3/Research | Archive G-50 Soldier | -3/Research | Archive G-67 Veteran | -3/Research | Archive G-73 Enforcer | -3/Research | Archive B-36 Bruiser | -3/Research | Archive B-48 Gladiator | -3/Research | Archive B-60 Warrior | -3/Research | Archive B-74 Champion | -3/Research | Archive L-31 Rogue | -3/Research | Archive L-41 Fighter | -3/Research | Archive L-61 Swordsman | -3/Research | Archive Y-45 Defender | -3/Research | Archive Y-54 Guardian | -3/Research | Archive Y-64 Sentinel | -3/Research | Archive Y-72 Warden | -3/Research | Archive D-53 Grenadier | -3/Research | Archive D-63 Destroyer | -3/Research | Archive D-83 Annihilator | -3/Research | Archive X-57 Shotgunner | -3/Research | Archive X-62 Marksman | -3/Research | Archive X-67 Chaingunner | -3/Research | Archive X-72 Disruptor | -3/Research | Archive X-77 Beamer | -3/Research | Archive X-82 Rainmaker | -3/Research | Archive X-87 Electro | -3/Research | Archive H-55 Commando | -3/Research | Archive H-66 Slayer | -3/Research | Archive H-77 Assassin | -3/Research | Archive H-88 Terminator | -3/Research | Archive P-60 Hacker | -3/Research | Archive P-70 Sage | -3/Research | Archive P-80 Master | -3/Research | Archive A-27 Freighter | -3/Quarantine | Archive Fabricated ------------ Nothing Repaired ---------- Flight Unit | 45% | -10/Materials Helical Railgun | 98% | -6/Factory | Broken Studied --------- None Alien Tech Used ----------------- Integrated Dissipator Core Cannon Achievements -------------- None Challenges ------------ None RPGLIKE | -11 -10 -10 -9 -9 -6 -6 -6 -6 -6 -6 -6 -5 -5 -5 -5 -5 -5 -5 -4 -4 -4 -4 -4 -4 -4 -3 -3 -3 -3 --------- Run | Yrd Mat Sub Rec Scr Fac Was Fac Low Low Zio Dee Pro Fac Was Fac Upp Upp Zhi Pro Fac Was Fac Upp Upp War Pro Res Qua Frg Levels Raised 32 | . 1 1 1 1 7 . 8 1 . . . 1 2 . 1 . 1 . . 2 . 1 . . 1 1 1 . 1 XP Earned 51147 | 3100 1510 1950 1955 900 11125 290 12145 244 137 105 249 1474 2399 32 2701 105 225 39 813 2181 22 2182 204 170 1494 496 1419 178 1303 XP Spent 49495 | 1750 2720 800 2200 1490 10390 . 12150 810 640 . 50 700 1650 . 3320 . . . . 4400 . . . . 3400 800 2200 . 25 Upgrades 74 | 4 6 1 4 2 16 . 12 3 2 . 1 2 5 . 8 . . . . 2 . . . . 2 1 2 . 1 Power Slot 2 | . . . . . 1 . . . . . . . . . . . . . . . . . . . . 1 . . . Propulsion Slot 4 | 1 . . 1 . 1 . 1 . . . . . . . . . . . . . . . . . . . . . . Utility Slot 10 | 1 2 . . 1 2 . 2 . . . . . . . . . . . . 1 . . . . 1 . . . . Weapon Slot 3 | 1 . 1 . . . . 1 . . . . . . . . . . . . . . . . . . . . . . Core Integrity 1 | . . . . . . . . . . . . . . . . . . . . . . . . . . . . . 1 Heat Dissipation 19 | . 2 . . 1 3 . 4 3 2 . . . . . 4 . . . . . . . . . . . . . . Energy Generation 4 | . . . . . 2 . 1 . . . . . 1 . . . . . . . . . . . . . . . . Mass Support 4 | . 2 . . . . . 1 . . . . . . . . . . . . . . . . . . . 1 . . Inventory Capacity 6 | 1 . . 1 . 2 . 1 . . . . . . . . . . . . 1 . . . . . . . . . Sight Range 3 | . . . . . . . . . . . . . . . 3 . . . . . . . . . . . . . . Terrain Scan Density 5 | . . . . . . . . . . . 1 . 4 . . . . . . . . . . . . . . . . Ranged Accuracy 6 | . . . 2 . 2 . 1 . . . . . . . 1 . . . . . . . . . . . . . . Hack Attack % 3 | . . . . . 2 . . . . . . . . . . . . . . . . . . . . . 1 . . Hack Defense % 1 | . . . . . 1 . . . . . . . . . . . . . . . . . . . . . . . . KI Damage % 2 | . . . . . . . . . . . . 2 . . . . . . . . . . . . . . . . . TH Damage % 1 | . . . . . . . . . . . . . . . . . . . . . . . . . 1 . . . . Protomatter Created 21324 | 46 120 238 46 115 932 86 1079 45 55 . 161 303 542 . 2630 103 424 171 441 850 170 2839 488 367 4894 693 1027 28 2431 Integrity Restored 26676 | . 305 534 138 630 1824 182 1679 505 154 . 608 895 765 . 2559 141 230 . 308 1128 84 2855 184 296 4381 369 671 . 5251 Core 20338 | . 278 534 138 446 1471 140 1171 451 25 . 426 746 406 . 1817 121 175 . 259 740 66 2276 144 234 3433 287 523 . 4031 Parts 6338 | . 27 . . 184 353 42 508 54 129 . 182 149 359 . 742 20 55 . 49 388 18 579 40 62 948 82 148 . 1220 Protomatter Decayed 17356 | 46 17 98 . 2306 285 . 684 . . . . . 181 . 1057 53 215 133 275 776 55 1756 297 197 2686 504 829 14 4892 Game ------ Seed ExpertRestorationStorm Manual? 0 Play Time 09:08:05 Cumulative 523.6 hours Start 2025.12.28 @ 15:26:34 End 2026.01.04 @ 10:07:35 Sessions 21 Manual Loads 0 Difficulty Rogue Special Mode Winter2019/RPGLIKE Game No. 192 Rogue 38 Adventurer 154 Explorer 0 Win Type - Total 20 Types 4/4/3/3/2/1/0/1/1/1 Lore% 95 Gallery% 88 Achievement% 61 Wizard Run 0 Options --------- Layout 0 ASCII 0 Keyboard 0 Movement Numpad Keybinds 0 Fullscreen 2 Font 18/SmallcapsGlow Map View 76x50 Zoom Use 0% Tactical HUD 1 Map Filters NONE Filters NONE Steam 1 RUN: 65f7fc38-4699-4815-8ed2-5cbf757d71df